Workbook

Sheet الصفحه الرئيسيه
B3: اسم الشــــركه | E3: لا تنسونى من صالح دعائكم | K3: =NOW() -> 2026-04-10T18:20:07.140

Sheet قائمه العملاء
A1: قائمه العملاء
A2: اســـم العـــميل | B2: بيانات العـــميل | C2: الرصيد الافتتاحي | D2: مدين | E2: دائن | F2: الرصيد الحالي
A3: عميل 1 | D3: =SUMIF('فواتير المبيعات'!C:C,A3,'فواتير المبيعات'!L:L)+SUMIF('يوميه الخدمات'!C:C,A3,'يوميه الخدمات'!J:J) -> 2052 | E3: =SUMIF('التحصيل من العميل'!C:C,A3,'التحصيل من العميل'!D:D) -> 2052 | F3: =C3+D3-E3 -> 0
A4: عميل 2 | D4: =SUMIF('فواتير المبيعات'!C:C,A4,'فواتير المبيعات'!L:L)+SUMIF('يوميه الخدمات'!C:C,A4,'يوميه الخدمات'!J:J) -> 0 | E4: =SUMIF('التحصيل من العميل'!C:C,A4,'التحصيل من العميل'!D:D) -> 0 | F4: 0
A5: عميل 3 | D5: =SUMIF('فواتير المبيعات'!C:C,A5,'فواتير المبيعات'!L:L)+SUMIF('يوميه الخدمات'!C:C,A5,'يوميه الخدمات'!J:J) -> 0 | E5: =SUMIF('التحصيل من العميل'!C:C,A5,'التحصيل من العميل'!D:D) -> 0 | F5: 0
A6: عميل 4 | D6: =SUMIF('فواتير المبيعات'!C:C,A6,'فواتير المبيعات'!L:L)+SUMIF('يوميه الخدمات'!C:C,A6,'يوميه الخدمات'!J:J) -> 0 | E6: =SUMIF('التحصيل من العميل'!C:C,A6,'التحصيل من العميل'!D:D) -> 0 | F6: 0
A7: عميل 5 | D7: =SUMIF('فواتير المبيعات'!C:C,A7,'فواتير المبيعات'!L:L)+SUMIF('يوميه الخدمات'!C:C,A7,'يوميه الخدمات'!J:J) -> 0 | E7: =SUMIF('التحصيل من العميل'!C:C,A7,'التحصيل من العميل'!D:D) -> 0 | F7: 0
D8: =SUMIF('فواتير المبيعات'!C:C,A8,'فواتير المبيعات'!L:L)+SUMIF('يوميه الخدمات'!C:C,A8,'يوميه الخدمات'!J:J) -> 0 | E8: =SUMIF('التحصيل من العميل'!C:C,A8,'التحصيل من العميل'!D:D) -> 0 | F8: 0
D9: =SUMIF('فواتير المبيعات'!C:C,A9,'فواتير المبيعات'!L:L)+SUMIF('يوميه الخدمات'!C:C,A9,'يوميه الخدمات'!J:J) -> 0 | E9: =SUMIF('التحصيل من العميل'!C:C,A9,'التحصيل من العميل'!D:D) -> 0 | F9: 0
D10: =SUMIF('فواتير المبيعات'!C:C,A10,'فواتير المبيعات'!L:L)+SUMIF('يوميه الخدمات'!C:C,A10,'يوميه الخدمات'!J:J) -> 0 | E10: =SUMIF('التحصيل من العميل'!C:C,A10,'التحصيل من العميل'!D:D) -> 0 | F10: 0
D11: =SUMIF('فواتير المبيعات'!C:C,A11,'فواتير المبيعات'!L:L)+SUMIF('يوميه الخدمات'!C:C,A11,'يوميه الخدمات'!J:J) -> 0 | E11: =SUMIF('التحصيل من العميل'!C:C,A11,'التحصيل من العميل'!D:D) -> 0 | F11: 0
D12: =SUMIF('فواتير المبيعات'!C:C,A12,'فواتير المبيعات'!L:L)+SUMIF('يوميه الخدمات'!C:C,A12,'يوميه الخدمات'!J:J) -> 0 | E12: =SUMIF('التحصيل من العميل'!C:C,A12,'التحصيل من العميل'!D:D) -> 0 | F12: 0
D13: =SUMIF('فواتير المبيعات'!C:C,A13,'فواتير المبيعات'!L:L)+SUMIF('يوميه الخدمات'!C:C,A13,'يوميه الخدمات'!J:J) -> 0 | E13: =SUMIF('التحصيل من العميل'!C:C,A13,'التحصيل من العميل'!D:D) -> 0 | F13: 0
D14: =SUMIF('فواتير المبيعات'!C:C,A14,'فواتير المبيعات'!L:L)+SUMIF('يوميه الخدمات'!C:C,A14,'يوميه الخدمات'!J:J) -> 0 | E14: =SUMIF('التحصيل من العميل'!C:C,A14,'التحصيل من العميل'!D:D) -> 0 | F14: 0
D15: =SUMIF('فواتير المبيعات'!C:C,A15,'فواتير المبيعات'!L:L)+SUMIF('يوميه الخدمات'!C:C,A15,'يوميه الخدمات'!J:J) -> 0 | E15: =SUMIF('التحصيل من العميل'!C:C,A15,'التحصيل من العميل'!D:D) -> 0 | F15: 0
D16: =SUMIF('فواتير المبيعات'!C:C,A16,'فواتير المبيعات'!L:L)+SUMIF('يوميه الخدمات'!C:C,A16,'يوميه الخدمات'!J:J) -> 0 | E16: =SUMIF('التحصيل من العميل'!C:C,A16,'التحصيل من العميل'!D:D) -> 0 | F16: 0
D17: =SUMIF('فواتير المبيعات'!C:C,A17,'فواتير المبيعات'!L:L)+SUMIF('يوميه الخدمات'!C:C,A17,'يوميه الخدمات'!J:J) -> 0 | E17: =SUMIF('التحصيل من العميل'!C:C,A17,'التحصيل من العميل'!D:D) -> 0 | F17: 0
D18: =SUMIF('فواتير المبيعات'!C:C,A18,'فواتير المبيعات'!L:L)+SUMIF('يوميه الخدمات'!C:C,A18,'يوميه الخدمات'!J:J) -> 0 | E18: =SUMIF('التحصيل من العميل'!C:C,A18,'التحصيل من العميل'!D:D) -> 0 | F18: 0
D19: =SUMIF('فواتير المبيعات'!C:C,A19,'فواتير المبيعات'!L:L)+SUMIF('يوميه الخدمات'!C:C,A19,'يوميه الخدمات'!J:J) -> 0 | E19: =SUMIF('التحصيل من العميل'!C:C,A19,'التحصيل من العميل'!D:D) -> 0 | F19: 0
D20: =SUMIF('فواتير المبيعات'!C:C,A20,'فواتير المبيعات'!L:L)+SUMIF('يوميه الخدمات'!C:C,A20,'يوميه الخدمات'!J:J) -> 0 | E20: =SUMIF('التحصيل من العميل'!C:C,A20,'التحصيل من العميل'!D:D) -> 0 | F20: 0
D21: =SUMIF('فواتير المبيعات'!C:C,A21,'فواتير المبيعات'!L:L)+SUMIF('يوميه الخدمات'!C:C,A21,'يوميه الخدمات'!J:J) -> 0 | E21: =SUMIF('التحصيل من العميل'!C:C,A21,'التحصيل من العميل'!D:D) -> 0 | F21: 0
D22: =SUMIF('فواتير المبيعات'!C:C,A22,'فواتير المبيعات'!L:L)+SUMIF('يوميه الخدمات'!C:C,A22,'يوميه الخدمات'!J:J) -> 0 | E22: =SUMIF('التحصيل من العميل'!C:C,A22,'التحصيل من العميل'!D:D) -> 0 | F22: 0
D23: =SUMIF('فواتير المبيعات'!C:C,A23,'فواتير المبيعات'!L:L)+SUMIF('يوميه الخدمات'!C:C,A23,'يوميه الخدمات'!J:J) -> 0 | E23: =SUMIF('التحصيل من العميل'!C:C,A23,'التحصيل من العميل'!D:D) -> 0 | F23: 0
D24: =SUMIF('فواتير المبيعات'!C:C,A24,'فواتير المبيعات'!L:L)+SUMIF('يوميه الخدمات'!C:C,A24,'يوميه الخدمات'!J:J) -> 0 | E24: =SUMIF('التحصيل من العميل'!C:C,A24,'التحصيل من العميل'!D:D) -> 0 | F24: 0
D25: =SUMIF('فواتير المبيعات'!C:C,A25,'فواتير المبيعات'!L:L)+SUMIF('يوميه الخدمات'!C:C,A25,'يوميه الخدمات'!J:J) -> 0 | E25: =SUMIF('التحصيل من العميل'!C:C,A25,'التحصيل من العميل'!D:D) -> 0 | F25: 0
D26: =SUMIF('فواتير المبيعات'!C:C,A26,'فواتير المبيعات'!L:L)+SUMIF('يوميه الخدمات'!C:C,A26,'يوميه الخدمات'!J:J) -> 0 | E26: =SUMIF('التحصيل من العميل'!C:C,A26,'التحصيل من العميل'!D:D) -> 0 | F26: 0
D27: =SUMIF('فواتير المبيعات'!C:C,A27,'فواتير المبيعات'!L:L)+SUMIF('يوميه الخدمات'!C:C,A27,'يوميه الخدمات'!J:J) -> 0 | E27: =SUMIF('التحصيل من العميل'!C:C,A27,'التحصيل من العميل'!D:D) -> 0 | F27: 0
D28: =SUMIF('فواتير المبيعات'!C:C,A28,'فواتير المبيعات'!L:L)+SUMIF('يوميه الخدمات'!C:C,A28,'يوميه الخدمات'!J:J) -> 0 | E28: =SUMIF('التحصيل من العميل'!C:C,A28,'التحصيل من العميل'!D:D) -> 0 | F28: 0
D29: =SUMIF('فواتير المبيعات'!C:C,A29,'فواتير المبيعات'!L:L)+SUMIF('يوميه الخدمات'!C:C,A29,'يوميه الخدمات'!J:J) -> 0 | E29: =SUMIF('التحصيل من العميل'!C:C,A29,'التحصيل من العميل'!D:D) -> 0 | F29: 0
D30: =SUMIF('فواتير المبيعات'!C:C,A30,'فواتير المبيعات'!L:L)+SUMIF('يوميه الخدمات'!C:C,A30,'يوميه الخدمات'!J:J) -> 0 | E30: =SUMIF('التحصيل من العميل'!C:C,A30,'التحصيل من العميل'!D:D) -> 0 | F30: 0
D31: =SUMIF('فواتير المبيعات'!C:C,A31,'فواتير المبيعات'!L:L)+SUMIF('يوميه الخدمات'!C:C,A31,'يوميه الخدمات'!J:J) -> 0 | E31: =SUMIF('التحصيل من العميل'!C:C,A31,'التحصيل من العميل'!D:D) -> 0 | F31: 0
D32: =SUMIF('فواتير المبيعات'!C:C,A32,'فواتير المبيعات'!L:L)+SUMIF('يوميه الخدمات'!C:C,A32,'يوميه الخدمات'!J:J) -> 0 | E32: =SUMIF('التحصيل من العميل'!C:C,A32,'التحصيل من العميل'!D:D) -> 0 | F32: 0
D33: =SUMIF('فواتير المبيعات'!C:C,A33,'فواتير المبيعات'!L:L)+SUMIF('يوميه الخدمات'!C:C,A33,'يوميه الخدمات'!J:J) -> 0 | E33: =SUMIF('التحصيل من العميل'!C:C,A33,'التحصيل من العميل'!D:D) -> 0 | F33: 0
D34: =SUMIF('فواتير المبيعات'!C:C,A34,'فواتير المبيعات'!L:L)+SUMIF('يوميه الخدمات'!C:C,A34,'يوميه الخدمات'!J:J) -> 0 | E34: =SUMIF('التحصيل من العميل'!C:C,A34,'التحصيل من العميل'!D:D) -> 0 | F34: 0
D35: =SUMIF('فواتير المبيعات'!C:C,A35,'فواتير المبيعات'!L:L)+SUMIF('يوميه الخدمات'!C:C,A35,'يوميه الخدمات'!J:J) -> 0 | E35: =SUMIF('التحصيل من العميل'!C:C,A35,'التحصيل من العميل'!D:D) -> 0 | F35: 0
D36: =SUMIF('فواتير المبيعات'!C:C,A36,'فواتير المبيعات'!L:L)+SUMIF('يوميه الخدمات'!C:C,A36,'يوميه الخدمات'!J:J) -> 0 | E36: =SUMIF('التحصيل من العميل'!C:C,A36,'التحصيل من العميل'!D:D) -> 0 | F36: 0
D37: =SUMIF('فواتير المبيعات'!C:C,A37,'فواتير المبيعات'!L:L)+SUMIF('يوميه الخدمات'!C:C,A37,'يوميه الخدمات'!J:J) -> 0 | E37: =SUMIF('التحصيل من العميل'!C:C,A37,'التحصيل من العميل'!D:D) -> 0 | F37: 0
D38: =SUMIF('فواتير المبيعات'!C:C,A38,'فواتير المبيعات'!L:L)+SUMIF('يوميه الخدمات'!C:C,A38,'يوميه الخدمات'!J:J) -> 0 | E38: =SUMIF('التحصيل من العميل'!C:C,A38,'التحصيل من العميل'!D:D) -> 0 | F38: 0
D39: =SUMIF('فواتير المبيعات'!C:C,A39,'فواتير المبيعات'!L:L)+SUMIF('يوميه الخدمات'!C:C,A39,'يوميه الخدمات'!J:J) -> 0 | E39: =SUMIF('التحصيل من العميل'!C:C,A39,'التحصيل من العميل'!D:D) -> 0 | F39: 0
D40: =SUMIF('فواتير المبيعات'!C:C,A40,'فواتير المبيعات'!L:L)+SUMIF('يوميه الخدمات'!C:C,A40,'يوميه الخدمات'!J:J) -> 0 | E40: =SUMIF('التحصيل من العميل'!C:C,A40,'التحصيل من العميل'!D:D) -> 0 | F40: 0
D41: =SUMIF('فواتير المبيعات'!C:C,A41,'فواتير المبيعات'!L:L)+SUMIF('يوميه الخدمات'!C:C,A41,'يوميه الخدمات'!J:J) -> 0 | E41: =SUMIF('التحصيل من العميل'!C:C,A41,'التحصيل من العميل'!D:D) -> 0 | F41: 0
D42: =SUMIF('فواتير المبيعات'!C:C,A42,'فواتير المبيعات'!L:L)+SUMIF('يوميه الخدمات'!C:C,A42,'يوميه الخدمات'!J:J) -> 0 | E42: =SUMIF('التحصيل من العميل'!C:C,A42,'التحصيل من العميل'!D:D) -> 0 | F42: 0
D43: =SUMIF('فواتير المبيعات'!C:C,A43,'فواتير المبيعات'!L:L)+SUMIF('يوميه الخدمات'!C:C,A43,'يوميه الخدمات'!J:J) -> 0 | E43: =SUMIF('التحصيل من العميل'!C:C,A43,'التحصيل من العميل'!D:D) -> 0 | F43: 0
D44: =SUMIF('فواتير المبيعات'!C:C,A44,'فواتير المبيعات'!L:L)+SUMIF('يوميه الخدمات'!C:C,A44,'يوميه الخدمات'!J:J) -> 0 | E44: =SUMIF('التحصيل من العميل'!C:C,A44,'التحصيل من العميل'!D:D) -> 0 | F44: 0
D45: =SUMIF('فواتير المبيعات'!C:C,A45,'فواتير المبيعات'!L:L)+SUMIF('يوميه الخدمات'!C:C,A45,'يوميه الخدمات'!J:J) -> 0 | E45: =SUMIF('التحصيل من العميل'!C:C,A45,'التحصيل من العميل'!D:D) -> 0 | F45: 0
D46: =SUMIF('فواتير المبيعات'!C:C,A46,'فواتير المبيعات'!L:L)+SUMIF('يوميه الخدمات'!C:C,A46,'يوميه الخدمات'!J:J) -> 0 | E46: =SUMIF('التحصيل من العميل'!C:C,A46,'التحصيل من العميل'!D:D) -> 0 | F46: 0
D47: =SUMIF('فواتير المبيعات'!C:C,A47,'فواتير المبيعات'!L:L)+SUMIF('يوميه الخدمات'!C:C,A47,'يوميه الخدمات'!J:J) -> 0 | E47: =SUMIF('التحصيل من العميل'!C:C,A47,'التحصيل من العميل'!D:D) -> 0 | F47: 0
D48: =SUMIF('فواتير المبيعات'!C:C,A48,'فواتير المبيعات'!L:L)+SUMIF('يوميه الخدمات'!C:C,A48,'يوميه الخدمات'!J:J) -> 0 | E48: =SUMIF('التحصيل من العميل'!C:C,A48,'التحصيل من العميل'!D:D) -> 0 | F48: 0
D49: =SUMIF('فواتير المبيعات'!C:C,A49,'فواتير المبيعات'!L:L)+SUMIF('يوميه الخدمات'!C:C,A49,'يوميه الخدمات'!J:J) -> 0 | E49: =SUMIF('التحصيل من العميل'!C:C,A49,'التحصيل من العميل'!D:D) -> 0 | F49: 0
D50: =SUMIF('فواتير المبيعات'!C:C,A50,'فواتير المبيعات'!L:L)+SUMIF('يوميه الخدمات'!C:C,A50,'يوميه الخدمات'!J:J) -> 0 | E50: =SUMIF('التحصيل من العميل'!C:C,A50,'التحصيل من العميل'!D:D) -> 0 | F50: 0
D51: =SUMIF('فواتير المبيعات'!C:C,A51,'فواتير المبيعات'!L:L)+SUMIF('يوميه الخدمات'!C:C,A51,'يوميه الخدمات'!J:J) -> 0 | E51: =SUMIF('التحصيل من العميل'!C:C,A51,'التحصيل من العميل'!D:D) -> 0 | F51: 0
D52: =SUMIF('فواتير المبيعات'!C:C,A52,'فواتير المبيعات'!L:L)+SUMIF('يوميه الخدمات'!C:C,A52,'يوميه الخدمات'!J:J) -> 0 | E52: =SUMIF('التحصيل من العميل'!C:C,A52,'التحصيل من العميل'!D:D) -> 0 | F52: 0
D53: =SUMIF('فواتير المبيعات'!C:C,A53,'فواتير المبيعات'!L:L)+SUMIF('يوميه الخدمات'!C:C,A53,'يوميه الخدمات'!J:J) -> 0 | E53: =SUMIF('التحصيل من العميل'!C:C,A53,'التحصيل من العميل'!D:D) -> 0 | F53: 0
D54: =SUMIF('فواتير المبيعات'!C:C,A54,'فواتير المبيعات'!L:L)+SUMIF('يوميه الخدمات'!C:C,A54,'يوميه الخدمات'!J:J) -> 0 | E54: =SUMIF('التحصيل من العميل'!C:C,A54,'التحصيل من العميل'!D:D) -> 0 | F54: 0
D55: =SUMIF('فواتير المبيعات'!C:C,A55,'فواتير المبيعات'!L:L)+SUMIF('يوميه الخدمات'!C:C,A55,'يوميه الخدمات'!J:J) -> 0 | E55: =SUMIF('التحصيل من العميل'!C:C,A55,'التحصيل من العميل'!D:D) -> 0 | F55: 0
D56: =SUMIF('فواتير المبيعات'!C:C,A56,'فواتير المبيعات'!L:L)+SUMIF('يوميه الخدمات'!C:C,A56,'يوميه الخدمات'!J:J) -> 0 | E56: =SUMIF('التحصيل من العميل'!C:C,A56,'التحصيل من العميل'!D:D) -> 0 | F56: 0
D57: =SUMIF('فواتير المبيعات'!C:C,A57,'فواتير المبيعات'!L:L)+SUMIF('يوميه الخدمات'!C:C,A57,'يوميه الخدمات'!J:J) -> 0 | E57: =SUMIF('التحصيل من العميل'!C:C,A57,'التحصيل من العميل'!D:D) -> 0 | F57: 0
D58: =SUMIF('فواتير المبيعات'!C:C,A58,'فواتير المبيعات'!L:L)+SUMIF('يوميه الخدمات'!C:C,A58,'يوميه الخدمات'!J:J) -> 0 | E58: =SUMIF('التحصيل من العميل'!C:C,A58,'التحصيل من العميل'!D:D) -> 0 | F58: 0
D59: =SUMIF('فواتير المبيعات'!C:C,A59,'فواتير المبيعات'!L:L)+SUMIF('يوميه الخدمات'!C:C,A59,'يوميه الخدمات'!J:J) -> 0 | E59: =SUMIF('التحصيل من العميل'!C:C,A59,'التحصيل من العميل'!D:D) -> 0 | F59: 0
D60: =SUMIF('فواتير المبيعات'!C:C,A60,'فواتير المبيعات'!L:L)+SUMIF('يوميه الخدمات'!C:C,A60,'يوميه الخدمات'!J:J) -> 0 | E60: =SUMIF('التحصيل من العميل'!C:C,A60,'التحصيل من العميل'!D:D) -> 0 | F60: 0
D61: =SUMIF('فواتير المبيعات'!C:C,A61,'فواتير المبيعات'!L:L)+SUMIF('يوميه الخدمات'!C:C,A61,'يوميه الخدمات'!J:J) -> 0 | E61: =SUMIF('التحصيل من العميل'!C:C,A61,'التحصيل من العميل'!D:D) -> 0 | F61: 0
D62: =SUMIF('فواتير المبيعات'!C:C,A62,'فواتير المبيعات'!L:L)+SUMIF('يوميه الخدمات'!C:C,A62,'يوميه الخدمات'!J:J) -> 0 | E62: =SUMIF('التحصيل من العميل'!C:C,A62,'التحصيل من العميل'!D:D) -> 0 | F62: 0
D63: =SUMIF('فواتير المبيعات'!C:C,A63,'فواتير المبيعات'!L:L)+SUMIF('يوميه الخدمات'!C:C,A63,'يوميه الخدمات'!J:J) -> 0 | E63: =SUMIF('التحصيل من العميل'!C:C,A63,'التحصيل من العميل'!D:D) -> 0 | F63: 0
D64: =SUMIF('فواتير المبيعات'!C:C,A64,'فواتير المبيعات'!L:L)+SUMIF('يوميه الخدمات'!C:C,A64,'يوميه الخدمات'!J:J) -> 0 | E64: =SUMIF('التحصيل من العميل'!C:C,A64,'التحصيل من العميل'!D:D) -> 0 | F64: 0
D65: =SUMIF('فواتير المبيعات'!C:C,A65,'فواتير المبيعات'!L:L)+SUMIF('يوميه الخدمات'!C:C,A65,'يوميه الخدمات'!J:J) -> 0 | E65: =SUMIF('التحصيل من العميل'!C:C,A65,'التحصيل من العميل'!D:D) -> 0 | F65: 0
D66: =SUMIF('فواتير المبيعات'!C:C,A66,'فواتير المبيعات'!L:L)+SUMIF('يوميه الخدمات'!C:C,A66,'يوميه الخدمات'!J:J) -> 0 | E66: =SUMIF('التحصيل من العميل'!C:C,A66,'التحصيل من العميل'!D:D) -> 0 | F66: 0
D67: =SUMIF('فواتير المبيعات'!C:C,A67,'فواتير المبيعات'!L:L)+SUMIF('يوميه الخدمات'!C:C,A67,'يوميه الخدمات'!J:J) -> 0 | E67: =SUMIF('التحصيل من العميل'!C:C,A67,'التحصيل من العميل'!D:D) -> 0 | F67: 0
D68: =SUMIF('فواتير المبيعات'!C:C,A68,'فواتير المبيعات'!L:L)+SUMIF('يوميه الخدمات'!C:C,A68,'يوميه الخدمات'!J:J) -> 0 | E68: =SUMIF('التحصيل من العميل'!C:C,A68,'التحصيل من العميل'!D:D) -> 0 | F68: 0
D69: =SUMIF('فواتير المبيعات'!C:C,A69,'فواتير المبيعات'!L:L)+SUMIF('يوميه الخدمات'!C:C,A69,'يوميه الخدمات'!J:J) -> 0 | E69: =SUMIF('التحصيل من العميل'!C:C,A69,'التحصيل من العميل'!D:D) -> 0 | F69: 0
D70: =SUMIF('فواتير المبيعات'!C:C,A70,'فواتير المبيعات'!L:L)+SUMIF('يوميه الخدمات'!C:C,A70,'يوميه الخدمات'!J:J) -> 0 | E70: =SUMIF('التحصيل من العميل'!C:C,A70,'التحصيل من العميل'!D:D) -> 0 | F70: 0
D71: =SUMIF('فواتير المبيعات'!C:C,A71,'فواتير المبيعات'!L:L)+SUMIF('يوميه الخدمات'!C:C,A71,'يوميه الخدمات'!J:J) -> 0 | E71: =SUMIF('التحصيل من العميل'!C:C,A71,'التحصيل من العميل'!D:D) -> 0 | F71: 0
D72: =SUMIF('فواتير المبيعات'!C:C,A72,'فواتير المبيعات'!L:L)+SUMIF('يوميه الخدمات'!C:C,A72,'يوميه الخدمات'!J:J) -> 0 | E72: =SUMIF('التحصيل من العميل'!C:C,A72,'التحصيل من العميل'!D:D) -> 0 | F72: 0
D73: =SUMIF('فواتير المبيعات'!C:C,A73,'فواتير المبيعات'!L:L)+SUMIF('يوميه الخدمات'!C:C,A73,'يوميه الخدمات'!J:J) -> 0 | E73: =SUMIF('التحصيل من العميل'!C:C,A73,'التحصيل من العميل'!D:D) -> 0 | F73: 0
D74: =SUMIF('فواتير المبيعات'!C:C,A74,'فواتير المبيعات'!L:L)+SUMIF('يوميه الخدمات'!C:C,A74,'يوميه الخدمات'!J:J) -> 0 | E74: =SUMIF('التحصيل من العميل'!C:C,A74,'التحصيل من العميل'!D:D) -> 0 | F74: 0
D75: =SUMIF('فواتير المبيعات'!C:C,A75,'فواتير المبيعات'!L:L)+SUMIF('يوميه الخدمات'!C:C,A75,'يوميه الخدمات'!J:J) -> 0 | E75: =SUMIF('التحصيل من العميل'!C:C,A75,'التحصيل من العميل'!D:D) -> 0 | F75: 0
D76: =SUMIF('فواتير المبيعات'!C:C,A76,'فواتير المبيعات'!L:L)+SUMIF('يوميه الخدمات'!C:C,A76,'يوميه الخدمات'!J:J) -> 0 | E76: =SUMIF('التحصيل من العميل'!C:C,A76,'التحصيل من العميل'!D:D) -> 0 | F76: 0
D77: =SUMIF('فواتير المبيعات'!C:C,A77,'فواتير المبيعات'!L:L)+SUMIF('يوميه الخدمات'!C:C,A77,'يوميه الخدمات'!J:J) -> 0 | E77: =SUMIF('التحصيل من العميل'!C:C,A77,'التحصيل من العميل'!D:D) -> 0 | F77: 0
D78: =SUMIF('فواتير المبيعات'!C:C,A78,'فواتير المبيعات'!L:L)+SUMIF('يوميه الخدمات'!C:C,A78,'يوميه الخدمات'!J:J) -> 0 | E78: =SUMIF('التحصيل من العميل'!C:C,A78,'التحصيل من العميل'!D:D) -> 0 | F78: 0
D79: =SUMIF('فواتير المبيعات'!C:C,A79,'فواتير المبيعات'!L:L)+SUMIF('يوميه الخدمات'!C:C,A79,'يوميه الخدمات'!J:J) -> 0 | E79: =SUMIF('التحصيل من العميل'!C:C,A79,'التحصيل من العميل'!D:D) -> 0 | F79: 0
D80: =SUMIF('فواتير المبيعات'!C:C,A80,'فواتير المبيعات'!L:L)+SUMIF('يوميه الخدمات'!C:C,A80,'يوميه الخدمات'!J:J) -> 0 | E80: =SUMIF('التحصيل من العميل'!C:C,A80,'التحصيل من العميل'!D:D) -> 0 | F80: 0
D81: =SUMIF('فواتير المبيعات'!C:C,A81,'فواتير المبيعات'!L:L)+SUMIF('يوميه الخدمات'!C:C,A81,'يوميه الخدمات'!J:J) -> 0 | E81: =SUMIF('التحصيل من العميل'!C:C,A81,'التحصيل من العميل'!D:D) -> 0 | F81: 0
D82: =SUMIF('فواتير المبيعات'!C:C,A82,'فواتير المبيعات'!L:L)+SUMIF('يوميه الخدمات'!C:C,A82,'يوميه الخدمات'!J:J) -> 0 | E82: =SUMIF('التحصيل من العميل'!C:C,A82,'التحصيل من العميل'!D:D) -> 0 | F82: 0
D83: =SUMIF('فواتير المبيعات'!C:C,A83,'فواتير المبيعات'!L:L)+SUMIF('يوميه الخدمات'!C:C,A83,'يوميه الخدمات'!J:J) -> 0 | E83: =SUMIF('التحصيل من العميل'!C:C,A83,'التحصيل من العميل'!D:D) -> 0 | F83: 0
D84: =SUMIF('فواتير المبيعات'!C:C,A84,'فواتير المبيعات'!L:L)+SUMIF('يوميه الخدمات'!C:C,A84,'يوميه الخدمات'!J:J) -> 0 | E84: =SUMIF('التحصيل من العميل'!C:C,A84,'التحصيل من العميل'!D:D) -> 0 | F84: 0
D85: =SUMIF('فواتير المبيعات'!C:C,A85,'فواتير المبيعات'!L:L)+SUMIF('يوميه الخدمات'!C:C,A85,'يوميه الخدمات'!J:J) -> 0 | E85: =SUMIF('التحصيل من العميل'!C:C,A85,'التحصيل من العميل'!D:D) -> 0 | F85: 0
D86: =SUMIF('فواتير المبيعات'!C:C,A86,'فواتير المبيعات'!L:L)+SUMIF('يوميه الخدمات'!C:C,A86,'يوميه الخدمات'!J:J) -> 0 | E86: =SUMIF('التحصيل من العميل'!C:C,A86,'التحصيل من العميل'!D:D) -> 0 | F86: 0
D87: =SUMIF('فواتير المبيعات'!C:C,A87,'فواتير المبيعات'!L:L)+SUMIF('يوميه الخدمات'!C:C,A87,'يوميه الخدمات'!J:J) -> 0 | E87: =SUMIF('التحصيل من العميل'!C:C,A87,'التحصيل من العميل'!D:D) -> 0 | F87: 0
D88: =SUMIF('فواتير المبيعات'!C:C,A88,'فواتير المبيعات'!L:L)+SUMIF('يوميه الخدمات'!C:C,A88,'يوميه الخدمات'!J:J) -> 0 | E88: =SUMIF('التحصيل من العميل'!C:C,A88,'التحصيل من العميل'!D:D) -> 0 | F88: 0
D89: =SUMIF('فواتير المبيعات'!C:C,A89,'فواتير المبيعات'!L:L)+SUMIF('يوميه الخدمات'!C:C,A89,'يوميه الخدمات'!J:J) -> 0 | E89: =SUMIF('التحصيل من العميل'!C:C,A89,'التحصيل من العميل'!D:D) -> 0 | F89: 0
D90: =SUMIF('فواتير المبيعات'!C:C,A90,'فواتير المبيعات'!L:L)+SUMIF('يوميه الخدمات'!C:C,A90,'يوميه الخدمات'!J:J) -> 0 | E90: =SUMIF('التحصيل من العميل'!C:C,A90,'التحصيل من العميل'!D:D) -> 0 | F90: 0
D91: =SUMIF('فواتير المبيعات'!C:C,A91,'فواتير المبيعات'!L:L)+SUMIF('يوميه الخدمات'!C:C,A91,'يوميه الخدمات'!J:J) -> 0 | E91: =SUMIF('التحصيل من العميل'!C:C,A91,'التحصيل من العميل'!D:D) -> 0 | F91: 0
C92: =SUM(C3:C91) -> 0 | D92: 2052 | E92: 2052 | F92: 0

Sheet قائمه المورديين
A1: قائمه المورديين
A2: اســـم المــــورد | B2: بيانات المــــورد | C2: الرصيد الافتتاحي | D2: مدين | E2: دائن | F2: الرصيد الحالي
A3: مورد 1 | D3: =SUMIF('السداد للمورد'!C:C,A3,'السداد للمورد'!D:D) -> 0 | E3: =SUMIF('فواتير المشتريات'!C:C,A3,'فواتير المشتريات'!L:L) -> 0 | F3: =C3+E3-D3 -> 0
A4: مورد 2 | D4: =SUMIF('السداد للمورد'!C:C,A4,'السداد للمورد'!D:D) -> 102.6 | E4: =SUMIF('فواتير المشتريات'!C:C,A4,'فواتير المشتريات'!L:L) -> 102.6 | F4: 0
A5: مورد 3 | D5: =SUMIF('السداد للمورد'!C:C,A5,'السداد للمورد'!D:D) -> 0 | E5: =SUMIF('فواتير المشتريات'!C:C,A5,'فواتير المشتريات'!L:L) -> 0 | F5: 0
A6: مورد 4 | D6: =SUMIF('السداد للمورد'!C:C,A6,'السداد للمورد'!D:D) -> 0 | E6: =SUMIF('فواتير المشتريات'!C:C,A6,'فواتير المشتريات'!L:L) -> 0 | F6: 0
A7: مورد 5 | D7: =SUMIF('السداد للمورد'!C:C,A7,'السداد للمورد'!D:D) -> 0 | E7: =SUMIF('فواتير المشتريات'!C:C,A7,'فواتير المشتريات'!L:L) -> 0 | F7: 0
D8: =SUMIF('السداد للمورد'!C:C,A8,'السداد للمورد'!D:D) -> 0 | E8: =SUMIF('فواتير المشتريات'!C:C,A8,'فواتير المشتريات'!L:L) -> 0 | F8: 0
D9: =SUMIF('السداد للمورد'!C:C,A9,'السداد للمورد'!D:D) -> 0 | E9: =SUMIF('فواتير المشتريات'!C:C,A9,'فواتير المشتريات'!L:L) -> 0 | F9: 0
D10: =SUMIF('السداد للمورد'!C:C,A10,'السداد للمورد'!D:D) -> 0 | E10: =SUMIF('فواتير المشتريات'!C:C,A10,'فواتير المشتريات'!L:L) -> 0 | F10: 0
D11: =SUMIF('السداد للمورد'!C:C,A11,'السداد للمورد'!D:D) -> 0 | E11: =SUMIF('فواتير المشتريات'!C:C,A11,'فواتير المشتريات'!L:L) -> 0 | F11: 0
D12: =SUMIF('السداد للمورد'!C:C,A12,'السداد للمورد'!D:D) -> 0 | E12: =SUMIF('فواتير المشتريات'!C:C,A12,'فواتير المشتريات'!L:L) -> 0 | F12: 0
D13: =SUMIF('السداد للمورد'!C:C,A13,'السداد للمورد'!D:D) -> 0 | E13: =SUMIF('فواتير المشتريات'!C:C,A13,'فواتير المشتريات'!L:L) -> 0 | F13: 0
D14: =SUMIF('السداد للمورد'!C:C,A14,'السداد للمورد'!D:D) -> 0 | E14: =SUMIF('فواتير المشتريات'!C:C,A14,'فواتير المشتريات'!L:L) -> 0 | F14: 0
D15: =SUMIF('السداد للمورد'!C:C,A15,'السداد للمورد'!D:D) -> 0 | E15: =SUMIF('فواتير المشتريات'!C:C,A15,'فواتير المشتريات'!L:L) -> 0 | F15: 0
D16: =SUMIF('السداد للمورد'!C:C,A16,'السداد للمورد'!D:D) -> 0 | E16: =SUMIF('فواتير المشتريات'!C:C,A16,'فواتير المشتريات'!L:L) -> 0 | F16: 0
D17: =SUMIF('السداد للمورد'!C:C,A17,'السداد للمورد'!D:D) -> 0 | E17: =SUMIF('فواتير المشتريات'!C:C,A17,'فواتير المشتريات'!L:L) -> 0 | F17: 0
D18: =SUMIF('السداد للمورد'!C:C,A18,'السداد للمورد'!D:D) -> 0 | E18: =SUMIF('فواتير المشتريات'!C:C,A18,'فواتير المشتريات'!L:L) -> 0 | F18: 0
D19: =SUMIF('السداد للمورد'!C:C,A19,'السداد للمورد'!D:D) -> 0 | E19: =SUMIF('فواتير المشتريات'!C:C,A19,'فواتير المشتريات'!L:L) -> 0 | F19: 0
D20: =SUMIF('السداد للمورد'!C:C,A20,'السداد للمورد'!D:D) -> 0 | E20: =SUMIF('فواتير المشتريات'!C:C,A20,'فواتير المشتريات'!L:L) -> 0 | F20: 0
D21: =SUMIF('السداد للمورد'!C:C,A21,'السداد للمورد'!D:D) -> 0 | E21: =SUMIF('فواتير المشتريات'!C:C,A21,'فواتير المشتريات'!L:L) -> 0 | F21: 0
D22: =SUMIF('السداد للمورد'!C:C,A22,'السداد للمورد'!D:D) -> 0 | E22: =SUMIF('فواتير المشتريات'!C:C,A22,'فواتير المشتريات'!L:L) -> 0 | F22: 0
D23: =SUMIF('السداد للمورد'!C:C,A23,'السداد للمورد'!D:D) -> 0 | E23: =SUMIF('فواتير المشتريات'!C:C,A23,'فواتير المشتريات'!L:L) -> 0 | F23: 0
D24: =SUMIF('السداد للمورد'!C:C,A24,'السداد للمورد'!D:D) -> 0 | E24: =SUMIF('فواتير المشتريات'!C:C,A24,'فواتير المشتريات'!L:L) -> 0 | F24: 0
D25: =SUMIF('السداد للمورد'!C:C,A25,'السداد للمورد'!D:D) -> 0 | E25: =SUMIF('فواتير المشتريات'!C:C,A25,'فواتير المشتريات'!L:L) -> 0 | F25: 0
D26: =SUMIF('السداد للمورد'!C:C,A26,'السداد للمورد'!D:D) -> 0 | E26: =SUMIF('فواتير المشتريات'!C:C,A26,'فواتير المشتريات'!L:L) -> 0 | F26: 0
D27: =SUMIF('السداد للمورد'!C:C,A27,'السداد للمورد'!D:D) -> 0 | E27: =SUMIF('فواتير المشتريات'!C:C,A27,'فواتير المشتريات'!L:L) -> 0 | F27: 0
D28: =SUMIF('السداد للمورد'!C:C,A28,'السداد للمورد'!D:D) -> 0 | E28: =SUMIF('فواتير المشتريات'!C:C,A28,'فواتير المشتريات'!L:L) -> 0 | F28: 0
D29: =SUMIF('السداد للمورد'!C:C,A29,'السداد للمورد'!D:D) -> 0 | E29: =SUMIF('فواتير المشتريات'!C:C,A29,'فواتير المشتريات'!L:L) -> 0 | F29: 0
D30: =SUMIF('السداد للمورد'!C:C,A30,'السداد للمورد'!D:D) -> 0 | E30: =SUMIF('فواتير المشتريات'!C:C,A30,'فواتير المشتريات'!L:L) -> 0 | F30: 0
D31: =SUMIF('السداد للمورد'!C:C,A31,'السداد للمورد'!D:D) -> 0 | E31: =SUMIF('فواتير المشتريات'!C:C,A31,'فواتير المشتريات'!L:L) -> 0 | F31: 0
D32: =SUMIF('السداد للمورد'!C:C,A32,'السداد للمورد'!D:D) -> 0 | E32: =SUMIF('فواتير المشتريات'!C:C,A32,'فواتير المشتريات'!L:L) -> 0 | F32: 0
D33: =SUMIF('السداد للمورد'!C:C,A33,'السداد للمورد'!D:D) -> 0 | E33: =SUMIF('فواتير المشتريات'!C:C,A33,'فواتير المشتريات'!L:L) -> 0 | F33: 0
D34: =SUMIF('السداد للمورد'!C:C,A34,'السداد للمورد'!D:D) -> 0 | E34: =SUMIF('فواتير المشتريات'!C:C,A34,'فواتير المشتريات'!L:L) -> 0 | F34: 0
D35: =SUMIF('السداد للمورد'!C:C,A35,'السداد للمورد'!D:D) -> 0 | E35: =SUMIF('فواتير المشتريات'!C:C,A35,'فواتير المشتريات'!L:L) -> 0 | F35: 0
D36: =SUMIF('السداد للمورد'!C:C,A36,'السداد للمورد'!D:D) -> 0 | E36: =SUMIF('فواتير المشتريات'!C:C,A36,'فواتير المشتريات'!L:L) -> 0 | F36: 0
D37: =SUMIF('السداد للمورد'!C:C,A37,'السداد للمورد'!D:D) -> 0 | E37: =SUMIF('فواتير المشتريات'!C:C,A37,'فواتير المشتريات'!L:L) -> 0 | F37: 0
D38: =SUMIF('السداد للمورد'!C:C,A38,'السداد للمورد'!D:D) -> 0 | E38: =SUMIF('فواتير المشتريات'!C:C,A38,'فواتير المشتريات'!L:L) -> 0 | F38: 0
D39: =SUMIF('السداد للمورد'!C:C,A39,'السداد للمورد'!D:D) -> 0 | E39: =SUMIF('فواتير المشتريات'!C:C,A39,'فواتير المشتريات'!L:L) -> 0 | F39: 0
D40: =SUMIF('السداد للمورد'!C:C,A40,'السداد للمورد'!D:D) -> 0 | E40: =SUMIF('فواتير المشتريات'!C:C,A40,'فواتير المشتريات'!L:L) -> 0 | F40: 0
D41: =SUMIF('السداد للمورد'!C:C,A41,'السداد للمورد'!D:D) -> 0 | E41: =SUMIF('فواتير المشتريات'!C:C,A41,'فواتير المشتريات'!L:L) -> 0 | F41: 0
D42: =SUMIF('السداد للمورد'!C:C,A42,'السداد للمورد'!D:D) -> 0 | E42: =SUMIF('فواتير المشتريات'!C:C,A42,'فواتير المشتريات'!L:L) -> 0 | F42: 0
D43: =SUMIF('السداد للمورد'!C:C,A43,'السداد للمورد'!D:D) -> 0 | E43: =SUMIF('فواتير المشتريات'!C:C,A43,'فواتير المشتريات'!L:L) -> 0 | F43: 0
D44: =SUMIF('السداد للمورد'!C:C,A44,'السداد للمورد'!D:D) -> 0 | E44: =SUMIF('فواتير المشتريات'!C:C,A44,'فواتير المشتريات'!L:L) -> 0 | F44: 0
D45: =SUMIF('السداد للمورد'!C:C,A45,'السداد للمورد'!D:D) -> 0 | E45: =SUMIF('فواتير المشتريات'!C:C,A45,'فواتير المشتريات'!L:L) -> 0 | F45: 0
D46: =SUMIF('السداد للمورد'!C:C,A46,'السداد للمورد'!D:D) -> 0 | E46: =SUMIF('فواتير المشتريات'!C:C,A46,'فواتير المشتريات'!L:L) -> 0 | F46: 0
D47: =SUMIF('السداد للمورد'!C:C,A47,'السداد للمورد'!D:D) -> 0 | E47: =SUMIF('فواتير المشتريات'!C:C,A47,'فواتير المشتريات'!L:L) -> 0 | F47: 0
D48: =SUMIF('السداد للمورد'!C:C,A48,'السداد للمورد'!D:D) -> 0 | E48: =SUMIF('فواتير المشتريات'!C:C,A48,'فواتير المشتريات'!L:L) -> 0 | F48: 0
D49: =SUMIF('السداد للمورد'!C:C,A49,'السداد للمورد'!D:D) -> 0 | E49: =SUMIF('فواتير المشتريات'!C:C,A49,'فواتير المشتريات'!L:L) -> 0 | F49: 0
D50: =SUMIF('السداد للمورد'!C:C,A50,'السداد للمورد'!D:D) -> 0 | E50: =SUMIF('فواتير المشتريات'!C:C,A50,'فواتير المشتريات'!L:L) -> 0 | F50: 0
D51: =SUMIF('السداد للمورد'!C:C,A51,'السداد للمورد'!D:D) -> 0 | E51: =SUMIF('فواتير المشتريات'!C:C,A51,'فواتير المشتريات'!L:L) -> 0 | F51: 0
D52: =SUMIF('السداد للمورد'!C:C,A52,'السداد للمورد'!D:D) -> 0 | E52: =SUMIF('فواتير المشتريات'!C:C,A52,'فواتير المشتريات'!L:L) -> 0 | F52: 0
D53: =SUMIF('السداد للمورد'!C:C,A53,'السداد للمورد'!D:D) -> 0 | E53: =SUMIF('فواتير المشتريات'!C:C,A53,'فواتير المشتريات'!L:L) -> 0 | F53: 0
D54: =SUMIF('السداد للمورد'!C:C,A54,'السداد للمورد'!D:D) -> 0 | E54: =SUMIF('فواتير المشتريات'!C:C,A54,'فواتير المشتريات'!L:L) -> 0 | F54: 0
D55: =SUMIF('السداد للمورد'!C:C,A55,'السداد للمورد'!D:D) -> 0 | E55: =SUMIF('فواتير المشتريات'!C:C,A55,'فواتير المشتريات'!L:L) -> 0 | F55: 0
D56: =SUMIF('السداد للمورد'!C:C,A56,'السداد للمورد'!D:D) -> 0 | E56: =SUMIF('فواتير المشتريات'!C:C,A56,'فواتير المشتريات'!L:L) -> 0 | F56: 0
D57: =SUMIF('السداد للمورد'!C:C,A57,'السداد للمورد'!D:D) -> 0 | E57: =SUMIF('فواتير المشتريات'!C:C,A57,'فواتير المشتريات'!L:L) -> 0 | F57: 0
D58: =SUMIF('السداد للمورد'!C:C,A58,'السداد للمورد'!D:D) -> 0 | E58: =SUMIF('فواتير المشتريات'!C:C,A58,'فواتير المشتريات'!L:L) -> 0 | F58: 0
D59: =SUMIF('السداد للمورد'!C:C,A59,'السداد للمورد'!D:D) -> 0 | E59: =SUMIF('فواتير المشتريات'!C:C,A59,'فواتير المشتريات'!L:L) -> 0 | F59: 0
D60: =SUMIF('السداد للمورد'!C:C,A60,'السداد للمورد'!D:D) -> 0 | E60: =SUMIF('فواتير المشتريات'!C:C,A60,'فواتير المشتريات'!L:L) -> 0 | F60: 0
D61: =SUMIF('السداد للمورد'!C:C,A61,'السداد للمورد'!D:D) -> 0 | E61: =SUMIF('فواتير المشتريات'!C:C,A61,'فواتير المشتريات'!L:L) -> 0 | F61: 0
D62: =SUMIF('السداد للمورد'!C:C,A62,'السداد للمورد'!D:D) -> 0 | E62: =SUMIF('فواتير المشتريات'!C:C,A62,'فواتير المشتريات'!L:L) -> 0 | F62: 0
D63: =SUMIF('السداد للمورد'!C:C,A63,'السداد للمورد'!D:D) -> 0 | E63: =SUMIF('فواتير المشتريات'!C:C,A63,'فواتير المشتريات'!L:L) -> 0 | F63: 0
D64: =SUMIF('السداد للمورد'!C:C,A64,'السداد للمورد'!D:D) -> 0 | E64: =SUMIF('فواتير المشتريات'!C:C,A64,'فواتير المشتريات'!L:L) -> 0 | F64: 0
D65: =SUMIF('السداد للمورد'!C:C,A65,'السداد للمورد'!D:D) -> 0 | E65: =SUMIF('فواتير المشتريات'!C:C,A65,'فواتير المشتريات'!L:L) -> 0 | F65: 0
D66: =SUMIF('السداد للمورد'!C:C,A66,'السداد للمورد'!D:D) -> 0 | E66: =SUMIF('فواتير المشتريات'!C:C,A66,'فواتير المشتريات'!L:L) -> 0 | F66: 0
D67: =SUMIF('السداد للمورد'!C:C,A67,'السداد للمورد'!D:D) -> 0 | E67: =SUMIF('فواتير المشتريات'!C:C,A67,'فواتير المشتريات'!L:L) -> 0 | F67: 0
D68: =SUMIF('السداد للمورد'!C:C,A68,'السداد للمورد'!D:D) -> 0 | E68: =SUMIF('فواتير المشتريات'!C:C,A68,'فواتير المشتريات'!L:L) -> 0 | F68: 0
D69: =SUMIF('السداد للمورد'!C:C,A69,'السداد للمورد'!D:D) -> 0 | E69: =SUMIF('فواتير المشتريات'!C:C,A69,'فواتير المشتريات'!L:L) -> 0 | F69: 0
D70: =SUMIF('السداد للمورد'!C:C,A70,'السداد للمورد'!D:D) -> 0 | E70: =SUMIF('فواتير المشتريات'!C:C,A70,'فواتير المشتريات'!L:L) -> 0 | F70: 0
D71: =SUMIF('السداد للمورد'!C:C,A71,'السداد للمورد'!D:D) -> 0 | E71: =SUMIF('فواتير المشتريات'!C:C,A71,'فواتير المشتريات'!L:L) -> 0 | F71: 0
D72: =SUMIF('السداد للمورد'!C:C,A72,'السداد للمورد'!D:D) -> 0 | E72: =SUMIF('فواتير المشتريات'!C:C,A72,'فواتير المشتريات'!L:L) -> 0 | F72: 0
D73: =SUMIF('السداد للمورد'!C:C,A73,'السداد للمورد'!D:D) -> 0 | E73: =SUMIF('فواتير المشتريات'!C:C,A73,'فواتير المشتريات'!L:L) -> 0 | F73: 0
D74: =SUMIF('السداد للمورد'!C:C,A74,'السداد للمورد'!D:D) -> 0 | E74: =SUMIF('فواتير المشتريات'!C:C,A74,'فواتير المشتريات'!L:L) -> 0 | F74: 0
D75: =SUMIF('السداد للمورد'!C:C,A75,'السداد للمورد'!D:D) -> 0 | E75: =SUMIF('فواتير المشتريات'!C:C,A75,'فواتير المشتريات'!L:L) -> 0 | F75: 0
D76: =SUMIF('السداد للمورد'!C:C,A76,'السداد للمورد'!D:D) -> 0 | E76: =SUMIF('فواتير المشتريات'!C:C,A76,'فواتير المشتريات'!L:L) -> 0 | F76: 0
D77: =SUMIF('السداد للمورد'!C:C,A77,'السداد للمورد'!D:D) -> 0 | E77: =SUMIF('فواتير المشتريات'!C:C,A77,'فواتير المشتريات'!L:L) -> 0 | F77: 0
D78: =SUMIF('السداد للمورد'!C:C,A78,'السداد للمورد'!D:D) -> 0 | E78: =SUMIF('فواتير المشتريات'!C:C,A78,'فواتير المشتريات'!L:L) -> 0 | F78: 0
D79: =SUMIF('السداد للمورد'!C:C,A79,'السداد للمورد'!D:D) -> 0 | E79: =SUMIF('فواتير المشتريات'!C:C,A79,'فواتير المشتريات'!L:L) -> 0 | F79: 0
D80: =SUMIF('السداد للمورد'!C:C,A80,'السداد للمورد'!D:D) -> 0 | E80: =SUMIF('فواتير المشتريات'!C:C,A80,'فواتير المشتريات'!L:L) -> 0 | F80: 0
D81: =SUMIF('السداد للمورد'!C:C,A81,'السداد للمورد'!D:D) -> 0 | E81: =SUMIF('فواتير المشتريات'!C:C,A81,'فواتير المشتريات'!L:L) -> 0 | F81: 0
D82: =SUMIF('السداد للمورد'!C:C,A82,'السداد للمورد'!D:D) -> 0 | E82: =SUMIF('فواتير المشتريات'!C:C,A82,'فواتير المشتريات'!L:L) -> 0 | F82: 0
D83: =SUMIF('السداد للمورد'!C:C,A83,'السداد للمورد'!D:D) -> 0 | E83: =SUMIF('فواتير المشتريات'!C:C,A83,'فواتير المشتريات'!L:L) -> 0 | F83: 0
C84: =SUM(C3:C83) -> 0 | D84: 102.6 | E84: 102.6 | F84: 0

Sheet قائمه الاصناف
A1: قائمه الاصناف
A2: اســــم الصــــنف | B2: بيــانـــــات الصــــنف | C2: الرصيد الافتتاحي | F2: حــركه الفتره | H2: الرصيد الحالي
C3: كميه | D3: م.ت.الوحده | E3: القيمه | F3: الوارد | G3: المنصرف | H3: كميه | I3: م.ت.الوحده | J3: القيمه
A4: صنف 1 | E4: =C4*D4 -> 0 | F4: =SUMIF('فواتير المشتريات'!$D:$D,A4,'فواتير المشتريات'!$E:$E) -> 0 | G4: =SUMIF('فواتير المبيعات'!$D:$D,A4,'فواتير المبيعات'!$E:$E) -> 0 | H4: =C4+F4-G4 -> 0 | I4: =IF(H4=0,0,(E4+SUMIF('فواتير المشتريات'!$D:$D,A4,'فواتير المشتريات'!$L:$L))/(C4+F4)) -> 0 | J4: =H4*I4 -> 0
A5: صنف 2 | E5: 0 | F5: =SUMIF('فواتير المشتريات'!$D:$D,A5,'فواتير المشتريات'!$E:$E) -> 0 | G5: =SUMIF('فواتير المبيعات'!$D:$D,A5,'فواتير المبيعات'!$E:$E) -> 0 | H5: 0 | I5: =IF(H5=0,0,(E5+SUMIF('فواتير المشتريات'!$D:$D,A5,'فواتير المشتريات'!$L:$L))/(C5+F5)) -> 0 | J5: 0
A6: صنف 3 | E6: 0 | F6: =SUMIF('فواتير المشتريات'!$D:$D,A6,'فواتير المشتريات'!$E:$E) -> 5 | G6: =SUMIF('فواتير المبيعات'!$D:$D,A6,'فواتير المبيعات'!$E:$E) -> 2 | H6: 3 | I6: =IF(H6=0,0,(E6+SUMIF('فواتير المشتريات'!$D:$D,A6,'فواتير المشتريات'!$L:$L))/(C6+F6)) -> 20.52 | J6: 61.56
A7: صنف 4 | E7: 0 | F7: =SUMIF('فواتير المشتريات'!$D:$D,A7,'فواتير المشتريات'!$E:$E) -> 0 | G7: =SUMIF('فواتير المبيعات'!$D:$D,A7,'فواتير المبيعات'!$E:$E) -> 0 | H7: 0 | I7: =IF(H7=0,0,(E7+SUMIF('فواتير المشتريات'!$D:$D,A7,'فواتير المشتريات'!$L:$L))/(C7+F7)) -> 0 | J7: 0
A8: صنف 5 | E8: 0 | F8: =SUMIF('فواتير المشتريات'!$D:$D,A8,'فواتير المشتريات'!$E:$E) -> 0 | G8: =SUMIF('فواتير المبيعات'!$D:$D,A8,'فواتير المبيعات'!$E:$E) -> 0 | H8: 0 | I8: =IF(H8=0,0,(E8+SUMIF('فواتير المشتريات'!$D:$D,A8,'فواتير المشتريات'!$L:$L))/(C8+F8)) -> 0 | J8: 0
E9: 0 | F9: =SUMIF('فواتير المشتريات'!$D:$D,A9,'فواتير المشتريات'!$E:$E) -> 0 | G9: =SUMIF('فواتير المبيعات'!$D:$D,A9,'فواتير المبيعات'!$E:$E) -> 0 | H9: 0 | I9: =IF(H9=0,0,(E9+SUMIF('فواتير المشتريات'!$D:$D,A9,'فواتير المشتريات'!$L:$L))/(C9+F9)) -> 0 | J9: 0
E10: 0 | F10: =SUMIF('فواتير المشتريات'!$D:$D,A10,'فواتير المشتريات'!$E:$E) -> 0 | G10: =SUMIF('فواتير المبيعات'!$D:$D,A10,'فواتير المبيعات'!$E:$E) -> 0 | H10: 0 | I10: =IF(H10=0,0,(E10+SUMIF('فواتير المشتريات'!$D:$D,A10,'فواتير المشتريات'!$L:$L))/(C10+F10)) -> 0 | J10: 0
E11: 0 | F11: =SUMIF('فواتير المشتريات'!$D:$D,A11,'فواتير المشتريات'!$E:$E) -> 0 | G11: =SUMIF('فواتير المبيعات'!$D:$D,A11,'فواتير المبيعات'!$E:$E) -> 0 | H11: 0 | I11: =IF(H11=0,0,(E11+SUMIF('فواتير المشتريات'!$D:$D,A11,'فواتير المشتريات'!$L:$L))/(C11+F11)) -> 0 | J11: 0
E12: 0 | F12: =SUMIF('فواتير المشتريات'!$D:$D,A12,'فواتير المشتريات'!$E:$E) -> 0 | G12: =SUMIF('فواتير المبيعات'!$D:$D,A12,'فواتير المبيعات'!$E:$E) -> 0 | H12: 0 | I12: =IF(H12=0,0,(E12+SUMIF('فواتير المشتريات'!$D:$D,A12,'فواتير المشتريات'!$L:$L))/(C12+F12)) -> 0 | J12: 0
E13: 0 | F13: =SUMIF('فواتير المشتريات'!$D:$D,A13,'فواتير المشتريات'!$E:$E) -> 0 | G13: =SUMIF('فواتير المبيعات'!$D:$D,A13,'فواتير المبيعات'!$E:$E) -> 0 | H13: 0 | I13: =IF(H13=0,0,(E13+SUMIF('فواتير المشتريات'!$D:$D,A13,'فواتير المشتريات'!$L:$L))/(C13+F13)) -> 0 | J13: 0
E14: 0 | F14: =SUMIF('فواتير المشتريات'!$D:$D,A14,'فواتير المشتريات'!$E:$E) -> 0 | G14: =SUMIF('فواتير المبيعات'!$D:$D,A14,'فواتير المبيعات'!$E:$E) -> 0 | H14: 0 | I14: =IF(H14=0,0,(E14+SUMIF('فواتير المشتريات'!$D:$D,A14,'فواتير المشتريات'!$L:$L))/(C14+F14)) -> 0 | J14: 0
E15: 0 | F15: =SUMIF('فواتير المشتريات'!$D:$D,A15,'فواتير المشتريات'!$E:$E) -> 0 | G15: =SUMIF('فواتير المبيعات'!$D:$D,A15,'فواتير المبيعات'!$E:$E) -> 0 | H15: 0 | I15: =IF(H15=0,0,(E15+SUMIF('فواتير المشتريات'!$D:$D,A15,'فواتير المشتريات'!$L:$L))/(C15+F15)) -> 0 | J15: 0
E16: 0 | F16: =SUMIF('فواتير المشتريات'!$D:$D,A16,'فواتير المشتريات'!$E:$E) -> 0 | G16: =SUMIF('فواتير المبيعات'!$D:$D,A16,'فواتير المبيعات'!$E:$E) -> 0 | H16: 0 | I16: =IF(H16=0,0,(E16+SUMIF('فواتير المشتريات'!$D:$D,A16,'فواتير المشتريات'!$L:$L))/(C16+F16)) -> 0 | J16: 0
E17: 0 | F17: =SUMIF('فواتير المشتريات'!$D:$D,A17,'فواتير المشتريات'!$E:$E) -> 0 | G17: =SUMIF('فواتير المبيعات'!$D:$D,A17,'فواتير المبيعات'!$E:$E) -> 0 | H17: 0 | I17: =IF(H17=0,0,(E17+SUMIF('فواتير المشتريات'!$D:$D,A17,'فواتير المشتريات'!$L:$L))/(C17+F17)) -> 0 | J17: 0
E18: 0 | F18: =SUMIF('فواتير المشتريات'!$D:$D,A18,'فواتير المشتريات'!$E:$E) -> 0 | G18: =SUMIF('فواتير المبيعات'!$D:$D,A18,'فواتير المبيعات'!$E:$E) -> 0 | H18: 0 | I18: =IF(H18=0,0,(E18+SUMIF('فواتير المشتريات'!$D:$D,A18,'فواتير المشتريات'!$L:$L))/(C18+F18)) -> 0 | J18: 0
E19: 0 | F19: =SUMIF('فواتير المشتريات'!$D:$D,A19,'فواتير المشتريات'!$E:$E) -> 0 | G19: =SUMIF('فواتير المبيعات'!$D:$D,A19,'فواتير المبيعات'!$E:$E) -> 0 | H19: 0 | I19: =IF(H19=0,0,(E19+SUMIF('فواتير المشتريات'!$D:$D,A19,'فواتير المشتريات'!$L:$L))/(C19+F19)) -> 0 | J19: 0
E20: 0 | F20: =SUMIF('فواتير المشتريات'!$D:$D,A20,'فواتير المشتريات'!$E:$E) -> 0 | G20: =SUMIF('فواتير المبيعات'!$D:$D,A20,'فواتير المبيعات'!$E:$E) -> 0 | H20: 0 | I20: =IF(H20=0,0,(E20+SUMIF('فواتير المشتريات'!$D:$D,A20,'فواتير المشتريات'!$L:$L))/(C20+F20)) -> 0 | J20: 0
E21: 0 | F21: =SUMIF('فواتير المشتريات'!$D:$D,A21,'فواتير المشتريات'!$E:$E) -> 0 | G21: =SUMIF('فواتير المبيعات'!$D:$D,A21,'فواتير المبيعات'!$E:$E) -> 0 | H21: 0 | I21: =IF(H21=0,0,(E21+SUMIF('فواتير المشتريات'!$D:$D,A21,'فواتير المشتريات'!$L:$L))/(C21+F21)) -> 0 | J21: 0
E22: 0 | F22: =SUMIF('فواتير المشتريات'!$D:$D,A22,'فواتير المشتريات'!$E:$E) -> 0 | G22: =SUMIF('فواتير المبيعات'!$D:$D,A22,'فواتير المبيعات'!$E:$E) -> 0 | H22: 0 | I22: =IF(H22=0,0,(E22+SUMIF('فواتير المشتريات'!$D:$D,A22,'فواتير المشتريات'!$L:$L))/(C22+F22)) -> 0 | J22: 0
E23: 0 | F23: =SUMIF('فواتير المشتريات'!$D:$D,A23,'فواتير المشتريات'!$E:$E) -> 0 | G23: =SUMIF('فواتير المبيعات'!$D:$D,A23,'فواتير المبيعات'!$E:$E) -> 0 | H23: 0 | I23: =IF(H23=0,0,(E23+SUMIF('فواتير المشتريات'!$D:$D,A23,'فواتير المشتريات'!$L:$L))/(C23+F23)) -> 0 | J23: 0
E24: 0 | F24: =SUMIF('فواتير المشتريات'!$D:$D,A24,'فواتير المشتريات'!$E:$E) -> 0 | G24: =SUMIF('فواتير المبيعات'!$D:$D,A24,'فواتير المبيعات'!$E:$E) -> 0 | H24: 0 | I24: =IF(H24=0,0,(E24+SUMIF('فواتير المشتريات'!$D:$D,A24,'فواتير المشتريات'!$L:$L))/(C24+F24)) -> 0 | J24: 0
E25: 0 | F25: =SUMIF('فواتير المشتريات'!$D:$D,A25,'فواتير المشتريات'!$E:$E) -> 0 | G25: =SUMIF('فواتير المبيعات'!$D:$D,A25,'فواتير المبيعات'!$E:$E) -> 0 | H25: 0 | I25: =IF(H25=0,0,(E25+SUMIF('فواتير المشتريات'!$D:$D,A25,'فواتير المشتريات'!$L:$L))/(C25+F25)) -> 0 | J25: 0
E26: 0 | F26: =SUMIF('فواتير المشتريات'!$D:$D,A26,'فواتير المشتريات'!$E:$E) -> 0 | G26: =SUMIF('فواتير المبيعات'!$D:$D,A26,'فواتير المبيعات'!$E:$E) -> 0 | H26: 0 | I26: =IF(H26=0,0,(E26+SUMIF('فواتير المشتريات'!$D:$D,A26,'فواتير المشتريات'!$L:$L))/(C26+F26)) -> 0 | J26: 0
E27: 0 | F27: =SUMIF('فواتير المشتريات'!$D:$D,A27,'فواتير المشتريات'!$E:$E) -> 0 | G27: =SUMIF('فواتير المبيعات'!$D:$D,A27,'فواتير المبيعات'!$E:$E) -> 0 | H27: 0 | I27: =IF(H27=0,0,(E27+SUMIF('فواتير المشتريات'!$D:$D,A27,'فواتير المشتريات'!$L:$L))/(C27+F27)) -> 0 | J27: 0
E28: 0 | F28: =SUMIF('فواتير المشتريات'!$D:$D,A28,'فواتير المشتريات'!$E:$E) -> 0 | G28: =SUMIF('فواتير المبيعات'!$D:$D,A28,'فواتير المبيعات'!$E:$E) -> 0 | H28: 0 | I28: =IF(H28=0,0,(E28+SUMIF('فواتير المشتريات'!$D:$D,A28,'فواتير المشتريات'!$L:$L))/(C28+F28)) -> 0 | J28: 0
E29: 0 | F29: =SUMIF('فواتير المشتريات'!$D:$D,A29,'فواتير المشتريات'!$E:$E) -> 0 | G29: =SUMIF('فواتير المبيعات'!$D:$D,A29,'فواتير المبيعات'!$E:$E) -> 0 | H29: 0 | I29: =IF(H29=0,0,(E29+SUMIF('فواتير المشتريات'!$D:$D,A29,'فواتير المشتريات'!$L:$L))/(C29+F29)) -> 0 | J29: 0
E30: 0 | F30: =SUMIF('فواتير المشتريات'!$D:$D,A30,'فواتير المشتريات'!$E:$E) -> 0 | G30: =SUMIF('فواتير المبيعات'!$D:$D,A30,'فواتير المبيعات'!$E:$E) -> 0 | H30: 0 | I30: =IF(H30=0,0,(E30+SUMIF('فواتير المشتريات'!$D:$D,A30,'فواتير المشتريات'!$L:$L))/(C30+F30)) -> 0 | J30: 0
E31: 0 | F31: =SUMIF('فواتير المشتريات'!$D:$D,A31,'فواتير المشتريات'!$E:$E) -> 0 | G31: =SUMIF('فواتير المبيعات'!$D:$D,A31,'فواتير المبيعات'!$E:$E) -> 0 | H31: 0 | I31: =IF(H31=0,0,(E31+SUMIF('فواتير المشتريات'!$D:$D,A31,'فواتير المشتريات'!$L:$L))/(C31+F31)) -> 0 | J31: 0
E32: 0 | F32: =SUMIF('فواتير المشتريات'!$D:$D,A32,'فواتير المشتريات'!$E:$E) -> 0 | G32: =SUMIF('فواتير المبيعات'!$D:$D,A32,'فواتير المبيعات'!$E:$E) -> 0 | H32: 0 | I32: =IF(H32=0,0,(E32+SUMIF('فواتير المشتريات'!$D:$D,A32,'فواتير المشتريات'!$L:$L))/(C32+F32)) -> 0 | J32: 0
E33: 0 | F33: =SUMIF('فواتير المشتريات'!$D:$D,A33,'فواتير المشتريات'!$E:$E) -> 0 | G33: =SUMIF('فواتير المبيعات'!$D:$D,A33,'فواتير المبيعات'!$E:$E) -> 0 | H33: 0 | I33: =IF(H33=0,0,(E33+SUMIF('فواتير المشتريات'!$D:$D,A33,'فواتير المشتريات'!$L:$L))/(C33+F33)) -> 0 | J33: 0
E34: 0 | F34: =SUMIF('فواتير المشتريات'!$D:$D,A34,'فواتير المشتريات'!$E:$E) -> 0 | G34: =SUMIF('فواتير المبيعات'!$D:$D,A34,'فواتير المبيعات'!$E:$E) -> 0 | H34: 0 | I34: =IF(H34=0,0,(E34+SUMIF('فواتير المشتريات'!$D:$D,A34,'فواتير المشتريات'!$L:$L))/(C34+F34)) -> 0 | J34: 0
E35: 0 | F35: =SUMIF('فواتير المشتريات'!$D:$D,A35,'فواتير المشتريات'!$E:$E) -> 0 | G35: =SUMIF('فواتير المبيعات'!$D:$D,A35,'فواتير المبيعات'!$E:$E) -> 0 | H35: 0 | I35: =IF(H35=0,0,(E35+SUMIF('فواتير المشتريات'!$D:$D,A35,'فواتير المشتريات'!$L:$L))/(C35+F35)) -> 0 | J35: 0
E36: 0 | F36: =SUMIF('فواتير المشتريات'!$D:$D,A36,'فواتير المشتريات'!$E:$E) -> 0 | G36: =SUMIF('فواتير المبيعات'!$D:$D,A36,'فواتير المبيعات'!$E:$E) -> 0 | H36: 0 | I36: =IF(H36=0,0,(E36+SUMIF('فواتير المشتريات'!$D:$D,A36,'فواتير المشتريات'!$L:$L))/(C36+F36)) -> 0 | J36: 0
E37: 0 | F37: =SUMIF('فواتير المشتريات'!$D:$D,A37,'فواتير المشتريات'!$E:$E) -> 0 | G37: =SUMIF('فواتير المبيعات'!$D:$D,A37,'فواتير المبيعات'!$E:$E) -> 0 | H37: 0 | I37: =IF(H37=0,0,(E37+SUMIF('فواتير المشتريات'!$D:$D,A37,'فواتير المشتريات'!$L:$L))/(C37+F37)) -> 0 | J37: 0
E38: 0 | F38: =SUMIF('فواتير المشتريات'!$D:$D,A38,'فواتير المشتريات'!$E:$E) -> 0 | G38: =SUMIF('فواتير المبيعات'!$D:$D,A38,'فواتير المبيعات'!$E:$E) -> 0 | H38: 0 | I38: =IF(H38=0,0,(E38+SUMIF('فواتير المشتريات'!$D:$D,A38,'فواتير المشتريات'!$L:$L))/(C38+F38)) -> 0 | J38: 0
E39: 0 | F39: =SUMIF('فواتير المشتريات'!$D:$D,A39,'فواتير المشتريات'!$E:$E) -> 0 | G39: =SUMIF('فواتير المبيعات'!$D:$D,A39,'فواتير المبيعات'!$E:$E) -> 0 | H39: 0 | I39: =IF(H39=0,0,(E39+SUMIF('فواتير المشتريات'!$D:$D,A39,'فواتير المشتريات'!$L:$L))/(C39+F39)) -> 0 | J39: 0
E40: 0 | F40: =SUMIF('فواتير المشتريات'!$D:$D,A40,'فواتير المشتريات'!$E:$E) -> 0 | G40: =SUMIF('فواتير المبيعات'!$D:$D,A40,'فواتير المبيعات'!$E:$E) -> 0 | H40: 0 | I40: =IF(H40=0,0,(E40+SUMIF('فواتير المشتريات'!$D:$D,A40,'فواتير المشتريات'!$L:$L))/(C40+F40)) -> 0 | J40: 0
E41: 0 | F41: =SUMIF('فواتير المشتريات'!$D:$D,A41,'فواتير المشتريات'!$E:$E) -> 0 | G41: =SUMIF('فواتير المبيعات'!$D:$D,A41,'فواتير المبيعات'!$E:$E) -> 0 | H41: 0 | I41: =IF(H41=0,0,(E41+SUMIF('فواتير المشتريات'!$D:$D,A41,'فواتير المشتريات'!$L:$L))/(C41+F41)) -> 0 | J41: 0
E42: 0 | F42: =SUMIF('فواتير المشتريات'!$D:$D,A42,'فواتير المشتريات'!$E:$E) -> 0 | G42: =SUMIF('فواتير المبيعات'!$D:$D,A42,'فواتير المبيعات'!$E:$E) -> 0 | H42: 0 | I42: =IF(H42=0,0,(E42+SUMIF('فواتير المشتريات'!$D:$D,A42,'فواتير المشتريات'!$L:$L))/(C42+F42)) -> 0 | J42: 0
E43: 0 | F43: =SUMIF('فواتير المشتريات'!$D:$D,A43,'فواتير المشتريات'!$E:$E) -> 0 | G43: =SUMIF('فواتير المبيعات'!$D:$D,A43,'فواتير المبيعات'!$E:$E) -> 0 | H43: 0 | I43: =IF(H43=0,0,(E43+SUMIF('فواتير المشتريات'!$D:$D,A43,'فواتير المشتريات'!$L:$L))/(C43+F43)) -> 0 | J43: 0
E44: 0 | F44: =SUMIF('فواتير المشتريات'!$D:$D,A44,'فواتير المشتريات'!$E:$E) -> 0 | G44: =SUMIF('فواتير المبيعات'!$D:$D,A44,'فواتير المبيعات'!$E:$E) -> 0 | H44: 0 | I44: =IF(H44=0,0,(E44+SUMIF('فواتير المشتريات'!$D:$D,A44,'فواتير المشتريات'!$L:$L))/(C44+F44)) -> 0 | J44: 0
E45: 0 | F45: =SUMIF('فواتير المشتريات'!$D:$D,A45,'فواتير المشتريات'!$E:$E) -> 0 | G45: =SUMIF('فواتير المبيعات'!$D:$D,A45,'فواتير المبيعات'!$E:$E) -> 0 | H45: 0 | I45: =IF(H45=0,0,(E45+SUMIF('فواتير المشتريات'!$D:$D,A45,'فواتير المشتريات'!$L:$L))/(C45+F45)) -> 0 | J45: 0
E46: 0 | F46: =SUMIF('فواتير المشتريات'!$D:$D,A46,'فواتير المشتريات'!$E:$E) -> 0 | G46: =SUMIF('فواتير المبيعات'!$D:$D,A46,'فواتير المبيعات'!$E:$E) -> 0 | H46: 0 | I46: =IF(H46=0,0,(E46+SUMIF('فواتير المشتريات'!$D:$D,A46,'فواتير المشتريات'!$L:$L))/(C46+F46)) -> 0 | J46: 0
E47: 0 | F47: =SUMIF('فواتير المشتريات'!$D:$D,A47,'فواتير المشتريات'!$E:$E) -> 0 | G47: =SUMIF('فواتير المبيعات'!$D:$D,A47,'فواتير المبيعات'!$E:$E) -> 0 | H47: 0 | I47: =IF(H47=0,0,(E47+SUMIF('فواتير المشتريات'!$D:$D,A47,'فواتير المشتريات'!$L:$L))/(C47+F47)) -> 0 | J47: 0
E48: 0 | F48: =SUMIF('فواتير المشتريات'!$D:$D,A48,'فواتير المشتريات'!$E:$E) -> 0 | G48: =SUMIF('فواتير المبيعات'!$D:$D,A48,'فواتير المبيعات'!$E:$E) -> 0 | H48: 0 | I48: =IF(H48=0,0,(E48+SUMIF('فواتير المشتريات'!$D:$D,A48,'فواتير المشتريات'!$L:$L))/(C48+F48)) -> 0 | J48: 0
E49: 0 | F49: =SUMIF('فواتير المشتريات'!$D:$D,A49,'فواتير المشتريات'!$E:$E) -> 0 | G49: =SUMIF('فواتير المبيعات'!$D:$D,A49,'فواتير المبيعات'!$E:$E) -> 0 | H49: 0 | I49: =IF(H49=0,0,(E49+SUMIF('فواتير المشتريات'!$D:$D,A49,'فواتير المشتريات'!$L:$L))/(C49+F49)) -> 0 | J49: 0
C50: =SUM(C4:C49) -> 0 | E50: =SUM(E4:E49) -> 0 | F50: 5 | G50: 2 | H50: 3 | J50: =SUM(J4:J49) -> 61.56

Sheet قائمه المصروفات
A1: قائمه المصـــروفات
A2: اســـم المصروف | B2: الرصيد الافتتاحي | C2: الحركه | D2: الرصيد الحالي
A3: مصروف 1 | C3: =SUMIF('حركه المصروفات'!C:C,A3,'حركه المصروفات'!D:D) -> 0 | D3: =B3+C3 -> 0
A4: مصروف 2 | C4: =SUMIF('حركه المصروفات'!C:C,A4,'حركه المصروفات'!D:D) -> 0 | D4: 0
A5: مصروف 3 | C5: =SUMIF('حركه المصروفات'!C:C,A5,'حركه المصروفات'!D:D) -> 0 | D5: 0
A6: مصروف 4 | C6: =SUMIF('حركه المصروفات'!C:C,A6,'حركه المصروفات'!D:D) -> 0 | D6: 0
A7: مصروف 5 | C7: =SUMIF('حركه المصروفات'!C:C,A7,'حركه المصروفات'!D:D) -> 500 | D7: 500
C8: =SUMIF('حركه المصروفات'!C:C,A8,'حركه المصروفات'!D:D) -> 0 | D8: 0
C9: =SUMIF('حركه المصروفات'!C:C,A9,'حركه المصروفات'!D:D) -> 0 | D9: 0
C10: =SUMIF('حركه المصروفات'!C:C,A10,'حركه المصروفات'!D:D) -> 0 | D10: 0
C11: =SUMIF('حركه المصروفات'!C:C,A11,'حركه المصروفات'!D:D) -> 0 | D11: 0
C12: =SUMIF('حركه المصروفات'!C:C,A12,'حركه المصروفات'!D:D) -> 0 | D12: 0
C13: =SUMIF('حركه المصروفات'!C:C,A13,'حركه المصروفات'!D:D) -> 0 | D13: 0
C14: =SUMIF('حركه المصروفات'!C:C,A14,'حركه المصروفات'!D:D) -> 0 | D14: 0
C15: =SUMIF('حركه المصروفات'!C:C,A15,'حركه المصروفات'!D:D) -> 0 | D15: 0
C16: =SUMIF('حركه المصروفات'!C:C,A16,'حركه المصروفات'!D:D) -> 0 | D16: 0
C17: =SUMIF('حركه المصروفات'!C:C,A17,'حركه المصروفات'!D:D) -> 0 | D17: 0
C18: =SUMIF('حركه المصروفات'!C:C,A18,'حركه المصروفات'!D:D) -> 0 | D18: 0
C19: =SUMIF('حركه المصروفات'!C:C,A19,'حركه المصروفات'!D:D) -> 0 | D19: 0
C20: =SUMIF('حركه المصروفات'!C:C,A20,'حركه المصروفات'!D:D) -> 0 | D20: 0
C21: =SUMIF('حركه المصروفات'!C:C,A21,'حركه المصروفات'!D:D) -> 0 | D21: 0
C22: =SUMIF('حركه المصروفات'!C:C,A22,'حركه المصروفات'!D:D) -> 0 | D22: 0
C23: =SUMIF('حركه المصروفات'!C:C,A23,'حركه المصروفات'!D:D) -> 0 | D23: 0
C24: =SUMIF('حركه المصروفات'!C:C,A24,'حركه المصروفات'!D:D) -> 0 | D24: 0
C25: =SUMIF('حركه المصروفات'!C:C,A25,'حركه المصروفات'!D:D) -> 0 | D25: 0
C26: =SUMIF('حركه المصروفات'!C:C,A26,'حركه المصروفات'!D:D) -> 0 | D26: 0
C27: =SUMIF('حركه المصروفات'!C:C,A27,'حركه المصروفات'!D:D) -> 0 | D27: 0
C28: =SUMIF('حركه المصروفات'!C:C,A28,'حركه المصروفات'!D:D) -> 0 | D28: 0
C29: =SUMIF('حركه المصروفات'!C:C,A29,'حركه المصروفات'!D:D) -> 0 | D29: 0
C30: =SUMIF('حركه المصروفات'!C:C,A30,'حركه المصروفات'!D:D) -> 0 | D30: 0
C31: =SUMIF('حركه المصروفات'!C:C,A31,'حركه المصروفات'!D:D) -> 0 | D31: 0
C32: =SUMIF('حركه المصروفات'!C:C,A32,'حركه المصروفات'!D:D) -> 0 | D32: 0
C33: =SUMIF('حركه المصروفات'!C:C,A33,'حركه المصروفات'!D:D) -> 0 | D33: 0
C34: =SUMIF('حركه المصروفات'!C:C,A34,'حركه المصروفات'!D:D) -> 0 | D34: 0
C35: =SUMIF('حركه المصروفات'!C:C,A35,'حركه المصروفات'!D:D) -> 0 | D35: 0
C36: =SUMIF('حركه المصروفات'!C:C,A36,'حركه المصروفات'!D:D) -> 0 | D36: 0
C37: =SUMIF('حركه المصروفات'!C:C,A37,'حركه المصروفات'!D:D) -> 0 | D37: 0
C38: =SUMIF('حركه المصروفات'!C:C,A38,'حركه المصروفات'!D:D) -> 0 | D38: 0
C39: =SUMIF('حركه المصروفات'!C:C,A39,'حركه المصروفات'!D:D) -> 0 | D39: 0
C40: =SUMIF('حركه المصروفات'!C:C,A40,'حركه المصروفات'!D:D) -> 0 | D40: 0
C41: =SUMIF('حركه المصروفات'!C:C,A41,'حركه المصروفات'!D:D) -> 0 | D41: 0
C42: =SUMIF('حركه المصروفات'!C:C,A42,'حركه المصروفات'!D:D) -> 0 | D42: 0
C43: =SUMIF('حركه المصروفات'!C:C,A43,'حركه المصروفات'!D:D) -> 0 | D43: 0
C44: =SUMIF('حركه المصروفات'!C:C,A44,'حركه المصروفات'!D:D) -> 0 | D44: 0
C45: =SUMIF('حركه المصروفات'!C:C,A45,'حركه المصروفات'!D:D) -> 0 | D45: 0
C46: =SUMIF('حركه المصروفات'!C:C,A46,'حركه المصروفات'!D:D) -> 0 | D46: 0
C47: =SUMIF('حركه المصروفات'!C:C,A47,'حركه المصروفات'!D:D) -> 0 | D47: 0
C48: =SUMIF('حركه المصروفات'!C:C,A48,'حركه المصروفات'!D:D) -> 0 | D48: 0
C49: =SUMIF('حركه المصروفات'!C:C,A49,'حركه المصروفات'!D:D) -> 0 | D49: 0
B50: =SUM(B3:B49) -> 0 | C50: 500 | D50: 500

Sheet قائمه الخدمات
A1: قائمه الخدمات
A2: اســـم الخدمه | B2: الرصيد الافتتاحي | C2: الحركه | D2: الرصيد الحالي
A3: خدمه 1 | C3: =SUMIF('يوميه الخدمات'!D:D,A3,'يوميه الخدمات'!J:J) -> 0 | D3: =B3+C3 -> 0
A4: خدمه 2 | C4: =SUMIF('يوميه الخدمات'!D:D,A4,'يوميه الخدمات'!J:J) -> 855 | D4: 855
A5: خدمه 3 | C5: =SUMIF('يوميه الخدمات'!D:D,A5,'يوميه الخدمات'!J:J) -> 969 | D5: 969
A6: خدمه 4 | C6: =SUMIF('يوميه الخدمات'!D:D,A6,'يوميه الخدمات'!J:J) -> 0 | D6: 0
A7: خدمه 5 | C7: =SUMIF('يوميه الخدمات'!D:D,A7,'يوميه الخدمات'!J:J) -> 0 | D7: 0
C8: =SUMIF('يوميه الخدمات'!D:D,A8,'يوميه الخدمات'!J:J) -> 0 | D8: 0
C9: =SUMIF('يوميه الخدمات'!D:D,A9,'يوميه الخدمات'!J:J) -> 0 | D9: 0
C10: =SUMIF('يوميه الخدمات'!D:D,A10,'يوميه الخدمات'!J:J) -> 0 | D10: 0
C11: =SUMIF('يوميه الخدمات'!D:D,A11,'يوميه الخدمات'!J:J) -> 0 | D11: 0
C12: =SUMIF('يوميه الخدمات'!D:D,A12,'يوميه الخدمات'!J:J) -> 0 | D12: 0
C13: =SUMIF('يوميه الخدمات'!D:D,A13,'يوميه الخدمات'!J:J) -> 0 | D13: 0
C14: =SUMIF('يوميه الخدمات'!D:D,A14,'يوميه الخدمات'!J:J) -> 0 | D14: 0
C15: =SUMIF('يوميه الخدمات'!D:D,A15,'يوميه الخدمات'!J:J) -> 0 | D15: 0
C16: =SUMIF('يوميه الخدمات'!D:D,A16,'يوميه الخدمات'!J:J) -> 0 | D16: 0
C17: =SUMIF('يوميه الخدمات'!D:D,A17,'يوميه الخدمات'!J:J) -> 0 | D17: 0
C18: =SUMIF('يوميه الخدمات'!D:D,A18,'يوميه الخدمات'!J:J) -> 0 | D18: 0
C19: =SUMIF('يوميه الخدمات'!D:D,A19,'يوميه الخدمات'!J:J) -> 0 | D19: 0
C20: =SUMIF('يوميه الخدمات'!D:D,A20,'يوميه الخدمات'!J:J) -> 0 | D20: 0
C21: =SUMIF('يوميه الخدمات'!D:D,A21,'يوميه الخدمات'!J:J) -> 0 | D21: 0
C22: =SUMIF('يوميه الخدمات'!D:D,A22,'يوميه الخدمات'!J:J) -> 0 | D22: 0
C23: =SUMIF('يوميه الخدمات'!D:D,A23,'يوميه الخدمات'!J:J) -> 0 | D23: 0
C24: =SUMIF('يوميه الخدمات'!D:D,A24,'يوميه الخدمات'!J:J) -> 0 | D24: 0
C25: =SUMIF('يوميه الخدمات'!D:D,A25,'يوميه الخدمات'!J:J) -> 0 | D25: 0
C26: =SUMIF('يوميه الخدمات'!D:D,A26,'يوميه الخدمات'!J:J) -> 0 | D26: 0
C27: =SUMIF('يوميه الخدمات'!D:D,A27,'يوميه الخدمات'!J:J) -> 0 | D27: 0
C28: =SUMIF('يوميه الخدمات'!D:D,A28,'يوميه الخدمات'!J:J) -> 0 | D28: 0
C29: =SUMIF('يوميه الخدمات'!D:D,A29,'يوميه الخدمات'!J:J) -> 0 | D29: 0
C30: =SUMIF('يوميه الخدمات'!D:D,A30,'يوميه الخدمات'!J:J) -> 0 | D30: 0
C31: =SUMIF('يوميه الخدمات'!D:D,A31,'يوميه الخدمات'!J:J) -> 0 | D31: 0
C32: =SUMIF('يوميه الخدمات'!D:D,A32,'يوميه الخدمات'!J:J) -> 0 | D32: 0
C33: =SUMIF('يوميه الخدمات'!D:D,A33,'يوميه الخدمات'!J:J) -> 0 | D33: 0
C34: =SUMIF('يوميه الخدمات'!D:D,A34,'يوميه الخدمات'!J:J) -> 0 | D34: 0
C35: =SUMIF('يوميه الخدمات'!D:D,A35,'يوميه الخدمات'!J:J) -> 0 | D35: 0
C36: =SUMIF('يوميه الخدمات'!D:D,A36,'يوميه الخدمات'!J:J) -> 0 | D36: 0
C37: =SUMIF('يوميه الخدمات'!D:D,A37,'يوميه الخدمات'!J:J) -> 0 | D37: 0
C38: =SUMIF('يوميه الخدمات'!D:D,A38,'يوميه الخدمات'!J:J) -> 0 | D38: 0
C39: =SUMIF('يوميه الخدمات'!D:D,A39,'يوميه الخدمات'!J:J) -> 0 | D39: 0
C40: =SUMIF('يوميه الخدمات'!D:D,A40,'يوميه الخدمات'!J:J) -> 0 | D40: 0
C41: =SUMIF('يوميه الخدمات'!D:D,A41,'يوميه الخدمات'!J:J) -> 0 | D41: 0
C42: =SUMIF('يوميه الخدمات'!D:D,A42,'يوميه الخدمات'!J:J) -> 0 | D42: 0
C43: =SUMIF('يوميه الخدمات'!D:D,A43,'يوميه الخدمات'!J:J) -> 0 | D43: 0
C44: =SUMIF('يوميه الخدمات'!D:D,A44,'يوميه الخدمات'!J:J) -> 0 | D44: 0
C45: =SUMIF('يوميه الخدمات'!D:D,A45,'يوميه الخدمات'!J:J) -> 0 | D45: 0
C46: =SUMIF('يوميه الخدمات'!D:D,A46,'يوميه الخدمات'!J:J) -> 0 | D46: 0
C47: =SUMIF('يوميه الخدمات'!D:D,A47,'يوميه الخدمات'!J:J) -> 0 | D47: 0
C48: =SUMIF('يوميه الخدمات'!D:D,A48,'يوميه الخدمات'!J:J) -> 0 | D48: 0
C49: =SUMIF('يوميه الخدمات'!D:D,A49,'يوميه الخدمات'!J:J) -> 0 | D49: 0
C50: =SUMIF('يوميه الخدمات'!D:D,A50,'يوميه الخدمات'!J:J) -> 0 | D50: 0
C51: =SUMIF('يوميه الخدمات'!D:D,A51,'يوميه الخدمات'!J:J) -> 0 | D51: 0
C52: =SUMIF('يوميه الخدمات'!D:D,A52,'يوميه الخدمات'!J:J) -> 0 | D52: 0
C53: =SUMIF('يوميه الخدمات'!D:D,A53,'يوميه الخدمات'!J:J) -> 0 | D53: 0
C54: =SUMIF('يوميه الخدمات'!D:D,A54,'يوميه الخدمات'!J:J) -> 0 | D54: 0
C55: =SUMIF('يوميه الخدمات'!D:D,A55,'يوميه الخدمات'!J:J) -> 0 | D55: 0
B56: =SUM(B3:B55) -> 0 | C56: 1824 | D56: 1824

Sheet فواتير المشتريات
A1: فواتير المشتريات
A2: التاريخ | B2: رقم المستند | C2: اسم المورد | D2: اسم الصنف | E2: الكميه | F2: سعر الوحده | G2: الاجمالي | H2: قيمه الخصم | I2: الاجمالي بعد الخصم | J2: نسبه الضريبه | K2: قيمه الضريبه | L2: الصافي | M2: ملاحظات
A3: 2021-01-01 | B3: 1 | C3: مورد 2 | D3: صنف 3 | E3: 5 | F3: 20 | G3: =E3*F3 -> 100 | H3: 10 | I3: =G3-H3 -> 90 | J3: 0.14 | K3: =I3*J3 -> 12.6 | L3: =I3+K3 -> 102.6
G4: 0 | I4: 0 | K4: 0 | L4: 0
G5: 0 | I5: 0 | K5: 0 | L5: 0
G6: 0 | I6: 0 | K6: 0 | L6: 0
G7: 0 | I7: 0 | K7: 0 | L7: 0
G8: 0 | I8: 0 | K8: 0 | L8: 0
G9: 0 | I9: 0 | K9: 0 | L9: 0
G10: 0 | I10: 0 | K10: 0 | L10: 0
G11: 0 | I11: 0 | K11: 0 | L11: 0
G12: 0 | I12: 0 | K12: 0 | L12: 0
G13: 0 | I13: 0 | K13: 0 | L13: 0
G14: 0 | I14: 0 | K14: 0 | L14: 0
G15: 0 | I15: 0 | K15: 0 | L15: 0
G16: 0 | I16: 0 | K16: 0 | L16: 0
G17: 0 | I17: 0 | K17: 0 | L17: 0
G18: 0 | I18: 0 | K18: 0 | L18: 0
G19: 0 | I19: 0 | K19: 0 | L19: 0
G20: 0 | I20: 0 | K20: 0 | L20: 0
G21: 0 | I21: 0 | K21: 0 | L21: 0
G22: 0 | I22: 0 | K22: 0 | L22: 0
G23: 0 | I23: 0 | K23: 0 | L23: 0
G24: 0 | I24: 0 | K24: 0 | L24: 0
G25: 0 | I25: 0 | K25: 0 | L25: 0
G26: 0 | I26: 0 | K26: 0 | L26: 0
G27: 0 | I27: 0 | K27: 0 | L27: 0
G28: 0 | I28: 0 | K28: 0 | L28: 0
G29: 0 | I29: 0 | K29: 0 | L29: 0
G30: 0 | I30: 0 | K30: 0 | L30: 0
G31: 0 | I31: 0 | K31: 0 | L31: 0
G32: 0 | I32: 0 | K32: 0 | L32: 0
G33: 0 | I33: 0 | K33: 0 | L33: 0
G34: 0 | I34: 0 | K34: 0 | L34: 0
G35: 0 | I35: 0 | K35: 0 | L35: 0
G36: 0 | I36: 0 | K36: 0 | L36: 0
G37: 0 | I37: 0 | K37: 0 | L37: 0
G38: 0 | I38: 0 | K38: 0 | L38: 0
G39: 0 | I39: 0 | K39: 0 | L39: 0
G40: 0 | I40: 0 | K40: 0 | L40: 0
G41: 0 | I41: 0 | K41: 0 | L41: 0
G42: 0 | I42: 0 | K42: 0 | L42: 0
G43: 0 | I43: 0 | K43: 0 | L43: 0
G44: 0 | I44: 0 | K44: 0 | L44: 0
G45: 0 | I45: 0 | K45: 0 | L45: 0
G46: 0 | I46: 0 | K46: 0 | L46: 0
G47: 0 | I47: 0 | K47: 0 | L47: 0
G48: 0 | I48: 0 | K48: 0 | L48: 0
G49: 0 | I49: 0 | K49: 0 | L49: 0
G50: 0 | I50: 0 | K50: 0 | L50: 0
G51: 0 | I51: 0 | K51: 0 | L51: 0
G52: 0 | I52: 0 | K52: 0 | L52: 0
G53: 0 | I53: 0 | K53: 0 | L53: 0
G54: 0 | I54: 0 | K54: 0 | L54: 0
G55: 0 | I55: 0 | K55: 0 | L55: 0
E56: =SUM(E3:E55) -> 5 | G56: =SUM(G3:G55) -> 100 | H56: 10 | I56: 90 | K56: =SUM(K3:K55) -> 12.6 | L56: 102.6

Sheet فواتير المبيعات
A1: فواتير المبيعات
A2: التاريخ | B2: رقم المستند | C2: اسم العميل | D2: اسم الصنف | E2: الكميه | F2: سعر الوحده | G2: الاجمالي | H2: قيمه الخصم | I2: الاجمالي بعد الخصم | J2: نسبه الضريبه | K2: قيمه الضريبه | L2: الصافي | M2: ملاحظات
A3: 2021-01-02 | B3: 1 | C3: عميل 1 | D3: صنف 3 | E3: 2 | F3: 105 | G3: =E3*F3 -> 210 | H3: 10 | I3: =G3-H3 -> 200 | J3: 0.14 | K3: =I3*J3 -> 28 | L3: =I3+K3 -> 228
G4: 0 | I4: 0 | K4: 0 | L4: 0
G5: 0 | I5: 0 | K5: 0 | L5: 0
G6: 0 | I6: 0 | K6: 0 | L6: 0
G7: 0 | I7: 0 | K7: 0 | L7: 0
G8: 0 | I8: 0 | K8: 0 | L8: 0
G9: 0 | I9: 0 | K9: 0 | L9: 0
G10: 0 | I10: 0 | K10: 0 | L10: 0
G11: 0 | I11: 0 | K11: 0 | L11: 0
G12: 0 | I12: 0 | K12: 0 | L12: 0
G13: 0 | I13: 0 | K13: 0 | L13: 0
G14: 0 | I14: 0 | K14: 0 | L14: 0
G15: 0 | I15: 0 | K15: 0 | L15: 0
G16: 0 | I16: 0 | K16: 0 | L16: 0
G17: 0 | I17: 0 | K17: 0 | L17: 0
G18: 0 | I18: 0 | K18: 0 | L18: 0
G19: 0 | I19: 0 | K19: 0 | L19: 0
G20: 0 | I20: 0 | K20: 0 | L20: 0
G21: 0 | I21: 0 | K21: 0 | L21: 0
G22: 0 | I22: 0 | K22: 0 | L22: 0
G23: 0 | I23: 0 | K23: 0 | L23: 0
G24: 0 | I24: 0 | K24: 0 | L24: 0
G25: 0 | I25: 0 | K25: 0 | L25: 0
G26: 0 | I26: 0 | K26: 0 | L26: 0
G27: 0 | I27: 0 | K27: 0 | L27: 0
G28: 0 | I28: 0 | K28: 0 | L28: 0
G29: 0 | I29: 0 | K29: 0 | L29: 0
G30: 0 | I30: 0 | K30: 0 | L30: 0
G31: 0 | I31: 0 | K31: 0 | L31: 0
G32: 0 | I32: 0 | K32: 0 | L32: 0
G33: 0 | I33: 0 | K33: 0 | L33: 0
G34: 0 | I34: 0 | K34: 0 | L34: 0
G35: 0 | I35: 0 | K35: 0 | L35: 0
G36: 0 | I36: 0 | K36: 0 | L36: 0
G37: 0 | I37: 0 | K37: 0 | L37: 0
G38: 0 | I38: 0 | K38: 0 | L38: 0
G39: 0 | I39: 0 | K39: 0 | L39: 0
G40: 0 | I40: 0 | K40: 0 | L40: 0
G41: 0 | I41: 0 | K41: 0 | L41: 0
G42: 0 | I42: 0 | K42: 0 | L42: 0
G43: 0 | I43: 0 | K43: 0 | L43: 0
G44: 0 | I44: 0 | K44: 0 | L44: 0
G45: 0 | I45: 0 | K45: 0 | L45: 0
G46: 0 | I46: 0 | K46: 0 | L46: 0
G47: 0 | I47: 0 | K47: 0 | L47: 0
G48: 0 | I48: 0 | K48: 0 | L48: 0
G49: 0 | I49: 0 | K49: 0 | L49: 0
G50: 0 | I50: 0 | K50: 0 | L50: 0
G51: 0 | I51: 0 | K51: 0 | L51: 0
G52: 0 | I52: 0 | K52: 0 | L52: 0
G53: 0 | I53: 0 | K53: 0 | L53: 0
G54: 0 | I54: 0 | K54: 0 | L54: 0
G55: 0 | I55: 0 | K55: 0 | L55: 0
G56: 0 | I56: 0 | K56: 0 | L56: 0
G57: 0 | I57: 0 | K57: 0 | L57: 0
G58: 0 | I58: 0 | K58: 0 | L58: 0
G59: 0 | I59: 0 | K59: 0 | L59: 0
G60: 0 | I60: 0 | K60: 0 | L60: 0
G61: 0 | I61: 0 | K61: 0 | L61: 0
G62: 0 | I62: 0 | K62: 0 | L62: 0
G63: 0 | I63: 0 | K63: 0 | L63: 0
G64: 0 | I64: 0 | K64: 0 | L64: 0
G65: 0 | I65: 0 | K65: 0 | L65: 0
G66: 0 | I66: 0 | K66: 0 | L66: 0
G67: 0 | I67: 0 | K67: 0 | L67: 0
E68: =SUM(E3:E67) -> 2 | G68: =SUM(G3:G67) -> 210 | H68: 10 | I68: 200 | K68: =SUM(K3:K67) -> 28 | L68: 228

Sheet يوميه الخدمات
A1: يوميه الخدمات المقدمه للعـــملاء
A2: التاريخ | B2: رقم المستند | C2: اسم العميل | D2: اسم الخدمه | E2: قيمه الخدمه | F2: قيمه الخصم | G2: الاجمالي بعد الخصم | H2: نسبه الضريبه | I2: قيمه الضريبه | J2: الصافي | K2: ملاحظات
A3: 2021-01-01 | B3: 1 | C3: عميل 1 | D3: خدمه 3 | E3: 1000 | F3: 150 | G3: =E3-F3 -> 850 | H3: 0.14 | I3: =G3*H3 -> 119 | J3: =G3+I3 -> 969
A4: 2021-01-02 | B4: 2 | C4: عميل 1 | D4: خدمه 2 | E4: 800 | F4: 50 | G4: 750 | H4: 0.14 | I4: 105 | J4: 855
G5: 0 | I5: 0 | J5: 0
G6: 0 | I6: 0 | J6: 0
G7: 0 | I7: 0 | J7: 0
G8: 0 | I8: 0 | J8: 0
G9: 0 | I9: 0 | J9: 0
G10: 0 | I10: 0 | J10: 0
G11: 0 | I11: 0 | J11: 0
G12: 0 | I12: 0 | J12: 0
G13: 0 | I13: 0 | J13: 0
G14: 0 | I14: 0 | J14: 0
G15: 0 | I15: 0 | J15: 0
G16: 0 | I16: 0 | J16: 0
G17: 0 | I17: 0 | J17: 0
G18: 0 | I18: 0 | J18: 0
G19: 0 | I19: 0 | J19: 0
G20: 0 | I20: 0 | J20: 0
G21: 0 | I21: 0 | J21: 0
G22: 0 | I22: 0 | J22: 0
G23: 0 | I23: 0 | J23: 0
G24: 0 | I24: 0 | J24: 0
G25: 0 | I25: 0 | J25: 0
G26: 0 | I26: 0 | J26: 0
G27: 0 | I27: 0 | J27: 0
G28: 0 | I28: 0 | J28: 0
G29: 0 | I29: 0 | J29: 0
G30: 0 | I30: 0 | J30: 0
G31: 0 | I31: 0 | J31: 0
G32: 0 | I32: 0 | J32: 0
G33: 0 | I33: 0 | J33: 0
G34: 0 | I34: 0 | J34: 0
G35: 0 | I35: 0 | J35: 0
G36: 0 | I36: 0 | J36: 0
G37: 0 | I37: 0 | J37: 0
G38: 0 | I38: 0 | J38: 0
G39: 0 | I39: 0 | J39: 0
G40: 0 | I40: 0 | J40: 0
G41: 0 | I41: 0 | J41: 0
G42: 0 | I42: 0 | J42: 0
G43: 0 | I43: 0 | J43: 0
G44: 0 | I44: 0 | J44: 0
G45: 0 | I45: 0 | J45: 0
G46: 0 | I46: 0 | J46: 0
G47: 0 | I47: 0 | J47: 0
G48: 0 | I48: 0 | J48: 0
G49: 0 | I49: 0 | J49: 0
G50: 0 | I50: 0 | J50: 0
G51: 0 | I51: 0 | J51: 0
G52: 0 | I52: 0 | J52: 0
G53: 0 | I53: 0 | J53: 0
G54: 0 | I54: 0 | J54: 0
G55: 0 | I55: 0 | J55: 0
G56: 0 | I56: 0 | J56: 0
G57: 0 | I57: 0 | J57: 0
G58: 0 | I58: 0 | J58: 0
G59: 0 | I59: 0 | J59: 0
G60: 0 | I60: 0 | J60: 0
G61: 0 | I61: 0 | J61: 0
G62: 0 | I62: 0 | J62: 0
G63: 0 | I63: 0 | J63: 0
G64: 0 | I64: 0 | J64: 0
G65: 0 | I65: 0 | J65: 0
G66: 0 | I66: 0 | J66: 0
G67: 0 | I67: 0 | J67: 0
G68: 0 | I68: 0 | J68: 0
G69: 0 | I69: 0 | J69: 0
G70: 0 | I70: 0 | J70: 0
G71: 0 | I71: 0 | J71: 0
G72: 0 | I72: 0 | J72: 0
G73: 0 | I73: 0 | J73: 0
G74: 0 | I74: 0 | J74: 0
G75: 0 | I75: 0 | J75: 0
G76: 0 | I76: 0 | J76: 0
G77: 0 | I77: 0 | J77: 0
G78: 0 | I78: 0 | J78: 0
G79: 0 | I79: 0 | J79: 0
G80: 0 | I80: 0 | J80: 0
G81: 0 | I81: 0 | J81: 0
G82: 0 | I82: 0 | J82: 0
G83: 0 | I83: 0 | J83: 0
G84: 0 | I84: 0 | J84: 0
G85: 0 | I85: 0 | J85: 0
G86: 0 | I86: 0 | J86: 0
G87: 0 | I87: 0 | J87: 0
G88: 0 | I88: 0 | J88: 0
G89: 0 | I89: 0 | J89: 0
G90: 0 | I90: 0 | J90: 0
G91: 0 | I91: 0 | J91: 0
G92: 0 | I92: 0 | J92: 0
G93: 0 | I93: 0 | J93: 0
G94: 0 | I94: 0 | J94: 0
G95: 0 | I95: 0 | J95: 0
G96: 0 | I96: 0 | J96: 0
G97: 0 | I97: 0 | J97: 0
G98: 0 | I98: 0 | J98: 0
G99: 0 | I99: 0 | J99: 0
G100: 0 | I100: 0 | J100: 0
G101: 0 | I101: 0 | J101: 0
G102: 0 | I102: 0 | J102: 0
G103: 0 | I103: 0 | J103: 0
E104: =SUM(E3:E103) -> 1800 | F104: 200 | G104: 1600 | I104: =SUM(I3:I103) -> 224 | J104: 1824

Sheet التحصيل من العميل
A1: التحصيل من العــملاء
A2: التاريخ | B2: رقم المستند | C2: اسم العميل | D2: قيمه التحصيل | E2: ملاحظات
A3: 2021-01-01 | B3: 1 | C3: عميل 1 | D3: 2052
D56: =SUM(D3:D55) -> 2052

Sheet السداد للمورد
A1: السـداد للمورديين
A2: التاريخ | B2: رقم المستند | C2: اسم المورد | D2: قيمه السداد | E2: ملاحظات
A3: 2021-01-02 | B3: 1 | C3: مورد 2 | D3: 102.6
D68: =SUM(D3:D67) -> 102.6

Sheet حركه المصروفات
A1: حـــركه المصـــروفات
A2: التاريخ | B2: رقم المستند | C2: اسم المصروف | D2: قيمه المصروف | E2: ملاحظات
A3: 2021-01-05 | B3: 2 | C3: مصروف 5 | D3: 500
D56: =SUM(D3:D55) -> 500

Sheet الخزينه
A1: رصيد الخزينه
A2: البيان | B2: القيمه
A3: الرصيد الافتتاحي | B3: 1000 | C3: من فضلك قم بوضع الرصيد الافتتاحي
A4: التحصيل من العملاء | B4: ='التحصيل من العميل'!D56 -> 2052
A5: السداد للمورديين | B5: ='السداد للمورد'!D68 -> 102.6
A6: المصروفات | B6: ='حركه المصروفات'!D56 -> 500
A7: الرصيد الحالي | B7: =B3+B4-B5-B6 -> 2449.4
